Cogmind - Beta 12 X1 @@@ ROGUE MODE // 2022.08.10 @ 16:33:05 Player: Exp. Geonium Core Result: Destroyed by EQ-019 with Cooled Phase Gun Performance ------------- Evolutions (9) 4500 Regions Visited (35) 7000 Robots Destroyed (277) 1385 Value Destroyed (16536) 16536 Prototype IDs (55) 1100 Alien Tech Used (0) 0 Bonus (27663) 27663 TOTAL SCORE: 58184 Bonus ------- High Alert Combat Kills 1968 Follower Combat Kills 8791 Entered Garrisons 2200 Used RIF Installer 6000 Aligned with FarCom 300 Met Zhirov 300 Built Enhanced Grunts 300 A7 Reached Mainframe 300 Met R17 at Cetus 500 Read Decrypted Archives 300 Met MAIN.C 5000 Hacked MAIN.C 300 Destroyed MAIN.C Shell 5000 Friendly Fire -3596 Cogmind --------- Core Integrity 0/1600 Matter 24/300 Energy 240/240 System Corruption 19% Temperature Cool (8) Movement Treading (160) Location -1/Command Parts ------- > --- POWER (1) -------- Zero-point Reactor > --- PROPULSION (4) --- Enhanced Armored Heavy Treads Enhanced Armored Heavy Treads > --- UTILITY (18) ----- Advanced Heat Sink Advanced Signal Interpreter Experimental Target Analyzer Precision Matter Filter Layered Heavy Armor Plating SHELL Armor Graphene Brace Relay Coupler [Swarmer] (25) Relay Coupler [Brawler] (42) Relay Coupler [Duelist] (40) Relay Coupler [Hunter] (2) Relay Coupler [Heavy] (23) Relay Coupler [Proto] (22) > --- WEAPON (2) ------- Graviton Cannon > --- INVENTORY (5) ---- Heavy Hardcell Cannon Micro-nuke Launcher Advanced Remote Datajack Peak State ------------ > --- POWER ------------ Zero-point Reactor > --- PROPULSION ------- Enhanced Armored Heavy Treads Enhanced Armored Heavy Treads > --- UTILITY ---------- Advanced Heat Sink Advanced Cooling System Advanced Signal Interpreter Experimental Target Analyzer Precision Matter Filter Layered Heavy Armor Plating SHELL Armor Graphene Brace EM Disruption Field Relay Coupler [Swarmer] Relay Coupler [Brawler] Relay Coupler [Duelist] Relay Coupler [Hunter] Relay Coupler [Heavy] Relay Coupler [Proto] > --- WEAPON ----------- Graviton Cannon Plasma Lance > --- INVENTORY -------- Heavy Machine Gun Heavy Linear Accelerator Micro-nuke Launcher Advanced Remote Datajack [Rating: 186] Favorites ----------- Power Quantum Reactor Engine Heavy Ion Engine Power Core Light Nuclear Core Reactor Quantum Reactor Propulsion Improved Heavy Treads Treads Improved Heavy Treads Leg Myomer Leg Utility Relay Coupler [Swarmer] Device Graphene Brace Storage High-capacity Storage Unit Processor Improved Targeting Computer Hackware Relay Coupler [Swarmer] Protection Improved Light Armor Plating Weapon Plasma Lance Energy Gun Improved Medium Laser Energy Cannon Guided Plasma Cannon Ballistic Gun Heavy Assault Rifle Ballistic Cannon Heavy Mass Driver Launcher Heavy Rocket Launcher Special Weapon Remote Datajack Impact Weapon Maul Slashing Weapon Katana Piercing Weapon Plasma Lance Special Melee Weapon Improved Datajack Build | -11 -10 -10 -9 -9 -9 -8 -8 -8 -8 -7 -7 -7 -7 -6 -6 -6 -6 -6 -6 -6 -6 -5 -5 -4 -4 -3 -3 -3 -3 -2 -2 -2 -2 -1 -1 ------- Run | Scr Mat Min Mat Min Exi Min Mat Gar Mat Fac Gar Fac Gar Fac Gar Fac Ext Cet Arc Hub Gar Fac Gar Fac Gar Res Gar Res Gar Res Gar Res Gar Acc Com Slots Evolved 18 | . . . 2 . . . 2 . . 2 . . . 2 . . . . . . . 2 . 2 . 2 . . . 2 . . . 2 . Power . | . . . . . . . . . . . . . . . . . . . . . . . . . . . . . . . . . . . . Propulsion 2 | . . . 1 . . . 1 . . . . . . . . . . . . . . . . . . . . . . . . . . . . Utility 16 | . . . 1 . . . 1 . . 2 . . . 2 . . . . . . . 2 . 2 . 2 . . . 2 . . . 2 . Weapon . | . . . . . . . . . . . . . . . . . . . . . . . . . . . . . . . . . . . . Parts Attached 398 | . 2 1 17 . 1 1 47 17 14 2 11 . 11 8 22 3 10 6 . . 7 . 14 1 12 . 22 . 19 1 39 13 26 30 41 Power 33 | . . . 2 . . . 1 2 1 . . . 1 1 . . 2 1 . . . . . . 1 . 2 . 2 . 4 3 4 3 3 Engine 6 | . . . 2 . . . 1 1 . . . . . . . . 2 . . . . . . . . . . . . . . . . . . Core 4 | . . . . . . . . . 1 . . . 1 1 . . . . . . . . . . . . . . . . . . . . 1 Reactor 23 | . . . . . . . . 1 . . . . . . . . . 1 . . . . . . 1 . 2 . 2 . 4 3 4 3 2 Propulsion 78 | . 2 . 6 . . . 19 4 . . . . 1 . 1 . . 2 . . . . . . 1 . 2 . 4 . 10 4 2 11 9 Treads 51 | . 2 . 6 . . . 19 4 . . . . 1 . 1 . . 2 . . . . . . 1 . 2 . 4 . 6 . . . 3 Leg 27 | . . . . . . . . . . . . . . . . . . . . . . . . . . . . . . . 4 4 2 11 6 Wheel . | . . . . . . . . . . . . . . . . . . . . . . . . . . . . . . . . . . . . Hover . | . . . . . . . . . . . . . . . . . . . . . . . . . . . . . . . . . . . . Flight . | . . . . . . . . . . . . . . . . . . . . . . . . . . . . . . . . . . . . Utility 165 | . . . 4 . 1 . 11 4 4 2 6 . 4 3 12 1 2 1 . . 7 . 10 1 7 . 14 . 10 1 23 5 9 7 16 Device 34 | . . . . . . . 1 . 1 . . . . . 1 . . . . . . . 2 . . . 5 . 3 . 10 1 . 1 9 Storage 6 | . . . 1 . 1 . . . . . 1 . . . . . . . . . . . 1 . . . . . 1 . 1 . . . . Processor 12 | . . . 1 . . . 3 . . . . . . . 4 . . . . . . . 1 . . . . . . . 1 1 . . 1 Hackware 82 | . . . . . . . . 1 . 2 3 . 4 3 6 1 2 . . . 6 . 2 1 7 . 8 . 5 1 8 3 9 6 4 Protection 31 | . . . 2 . . . 7 3 3 . 2 . . . 1 . . 1 . . 1 . 4 . . . 1 . 1 . 3 . . . 2 Artifact . | . . . . . . . . . . . . . . . . . . . . . . . . . . . . . . . . . . . . Weapon 122 | . . 1 5 . . 1 16 7 9 . 5 . 5 4 9 2 6 2 . . . . 4 . 3 . 4 . 3 . 2 1 11 9 13 Energy Gun 3 | . . . . . . . 2 . . . . . . . . . . . . . . . . . . . . . . . 1 . . . . Energy Cannon 23 | . . . . . . . 2 2 4 . 2 . 1 2 . . 2 . . . . . 1 . 1 . 1 . 1 . . . 3 1 . Ballistic Gun 12 | . . . 4 . . 1 4 . . . . . . . . . . . . . . . . . . . . . . . 1 . . . 2 Ballistic Cannon 7 | . . . . . . . . . . . . . . . . . . . . . . . . . . . . . . . . . 3 3 1 Launcher 25 | . . 1 1 . . . 4 3 3 . 2 . 2 . 3 1 . 1 . . . . 1 . . . . . . . . . . . 3 Special Weapon 24 | . . . . . . . . . . . 1 . . 1 2 1 3 1 . . . . 1 . 1 . 3 . 2 . . 1 2 2 3 Impact Weapon 4 | . . . . . . . 1 1 2 . . . . . . . . . . . . . . . . . . . . . . . . . . Slashing Weapon 9 | . . . . . . . 2 1 . . . . 2 1 3 . . . . . . . . . . . . . . . . . . . . Piercing Weapon 14 | . . . . . . . . . . . . . . . 1 . 1 . . . . . 1 . 1 . . . . . . . 3 3 4 Special Melee Weapon 1 | . . . . . . . 1 . . . . . . . . . . . . . . . . . . . . . . . . . . . . Unidentified Prototypes 27 | . . . 2 . . . 2 . 1 . . . . . 5 . . 2 . . . . 3 . . . 3 . . . . . . 1 8 Parts Lost 114 | . 1 . 3 . . 1 8 5 1 . . . 1 . 2 . 1 . . . . . 2 . 1 . 4 . 7 . 25 11 11 2 28 Power 17 | . 1 . 1 . . . . 1 1 . . . 1 . 1 . . . . . . . . . . . . . 2 . 3 2 2 . 2 Propulsion 25 | . . . 1 . . . 5 2 . . . . . . . . . . . . . . . . . . . . . . 4 4 2 . 7 Utility 55 | . . . 1 . . . 1 1 . . . . . . 1 . . . . . . . 1 . . . 3 . 3 . 16 4 5 2 17 Weapon 17 | . . . . . . 1 2 1 . . . . . . . . 1 . . . . . 1 . 1 . 1 . 2 . 2 1 2 . 2 Highest Loss Streak 15 | . 1 . 2 . . 1 4 4 1 . . . 1 . 1 . 1 . . . . . 1 . 1 . 2 . 5 . 6 5 5 2 15 To Critical Strikes . | . . . . . . . . . . . . . . . . . . . . . . . . . . . . . . . . . . . . Average Slot Usage (%) 86 | . 79 71 75 100 100 97 96 94 80 84 83 84 83 79 82 80 82 86 86 86 85 76 86 81 87 80 86 85 86 80 80 92 91 97 71 Engine 1 | . 8 . 5 11 11 11 9 5 . . . . . . . . 2 5 . . . . . . . . . . . . . . . . . Core 1 | . . . . . . . . . 1 7 7 7 6 6 5 . . . . . . . . . . . . . . . . . . . . Reactor 2 | . . . . . . . . 3 7 . . . . . . . . . 6 6 6 5 5 5 5 4 4 4 3 4 3 3 3 4 2 Treads 15 | . 24 28 31 33 33 33 33 33 18 15 15 15 15 13 13 13 13 13 13 13 13 11 11 10 10 9 9 9 9 8 10 . . . 1 Leg 1 | . 3 . . . . . . . . . . . . . . . . . . . . . . . . . . . . . . 15 16 16 8 Device 3 | . . . . . . . 1 . . . . . . . . . . . . . . . . 5 5 4 5 9 6 4 15 9 4 5 9 Storage 6 | . 14 14 11 11 11 11 9 9 9 7 7 7 7 6 6 6 6 6 6 6 6 5 5 5 5 4 4 4 6 4 4 4 4 4 2 Processor 5 | . . . . 11 11 11 14 9 9 7 7 7 . . 14 16 7 . . . . . 2 . . . . . . . . 4 7 4 4 Hackware 27 | . . . . . . . . . . 15 18 23 31 39 24 29 38 40 40 40 39 35 35 33 40 38 44 42 46 45 29 46 47 56 35 Protection 6 | . . . 6 11 11 11 9 15 17 15 10 7 5 . 3 . . 5 6 6 6 5 10 10 10 9 6 4 2 4 4 . . . 1 Ballistic Gun 2 | . 14 14 22 22 22 19 9 . . . . . . . . . . . . . . . . . . . . . . . 1 1 . . . Launcher 1 | . . 14 . . . . 2 8 1 . 2 . 1 . . . . . . . . . 1 . . . . . . . . . . . . Special Weapon 2 | . . . . . . . . . . . 3 7 7 6 5 5 4 6 6 6 6 5 4 5 4 4 3 4 2 4 . . 1 3 1 Slashing Weapon 1 | . . . . . . . 3 2 9 7 7 7 5 4 5 . . . . . . . . . . . . . . . . . . . . Piercing Weapon 2 | . . . . . . . . . . . . . . . . 6 5 6 6 6 6 5 3 5 5 4 4 4 4 4 4 4 1 3 2 Naked Turns . | . . . . . . . . . . . . . . . . . . . . . . . . . . . . . . . . . . . . Heaviest Build 104 | 12 12 10 37 37 57 57 74 75 75 63 63 53 58 58 58 50 63 73 73 73 80 73 80 77 77 77 84 80 87 84 104 98 76 86 99 Greatest Support 160 | 20 40 40 63 60 60 60 112 150 150 150 150 150 150 150 150 75 75 160 160 160 160 160 160 160 160 155 155 150 150 150 155 103 103 112 160 Greatest Overweight (x) 1 | . . . . . . . . . . . . . . . . . . . . . . . . . . . . . . . 1 . 1 . 1 Average Overweight (x) . | . . . . . . . . . . . . . . . . . . . . . . . . . . . . . . . . . . . . Largest Inventory Capacity 20 | . 8 8 15 15 20 20 20 20 20 20 20 20 20 20 20 20 20 20 20 20 20 20 20 20 20 20 20 20 20 20 20 20 20 20 20 Average Capacity 19 | . 8 8 10 15 16 20 20 20 20 20 20 20 20 20 20 20 20 20 20 20 20 20 20 20 20 20 20 20 20 20 20 20 20 20 12 Most Carried 20 | . 8 6 15 15 16 16 20 20 20 20 20 20 20 20 20 19 20 20 20 20 20 20 20 20 20 20 20 20 20 20 20 19 20 20 19 Average Carried 17 | . 4 5 8 15 15 15 18 18 19 18 19 20 19 19 19 18 17 19 20 20 19 20 19 19 19 20 19 20 18 19 18 16 17 19 9 Final Capacity 20 | 8 8 8 15 15 20 20 20 20 20 20 20 20 20 20 20 20 20 20 20 20 20 20 20 20 20 20 20 20 20 20 20 20 20 20 5 Final Carried 20 | 6 4 6 15 15 16 15 20 20 20 18 20 20 20 19 19 18 20 20 20 20 20 20 20 19 20 20 20 20 20 19 19 15 20 20 4 Class Distribution -------------------- 50% | Botlord-Mutant 18% | Scavenger-Mutant 17% | Mutant 11% | Bothacker-Mutant Dominant Class ---------------- Mutant | -10/Materials Mutant | -10/Mines Scavenger-Mutant | -9/Materials Scavenger-Mutant | -9/Mines Scavenger-Mutant | -9/Exiles Scavenger-Mutant | -8/Mines Mutant | -8/Materials Mutant | -8/Garrison Mutant | -8/Materials Scavenger-Mutant | -7/Factory Scavenger-Mutant | -7/Garrison Bothacker-Mutant | -7/Factory Bothacker-Mutant | -7/Garrison Bothacker-Mutant | -6/Factory Bothacker-Mutant | -6/Garrison Botlord-Mutant | -6/Factory Botlord-Mutant | -6/Extension Botlord-Mutant | -6/Cetus Botlord-Mutant | -6/Archives Botlord-Mutant | -6/Hub_04(d) Botlord-Mutant | -6/Garrison Botlord-Mutant | -5/Factory Botlord-Mutant | -5/Garrison Botlord-Mutant | -4/Factory Botlord-Mutant | -4/Garrison Botlord-Mutant | -3/Research Botlord-Mutant | -3/Garrison Botlord-Mutant | -3/Research Botlord-Mutant | -3/Garrison Botlord-Mutant | -2/Research Scavenger-Mutant | -2/Garrison Scavenger-Mutant | -2/Research Botlord-Mutant | -2/Garrison Botlord-Mutant | -1/Access Botlord-Mutant | -1/Command Resources | -11 -10 -10 -9 -9 -9 -8 -8 -8 -8 -7 -7 -7 -7 -6 -6 -6 -6 -6 -6 -6 -6 -5 -5 -4 -4 -3 -3 -3 -3 -2 -2 -2 -2 -1 -1 ----------- Run | Scr Mat Min Mat Min Exi Min Mat Gar Mat Fac Gar Fac Gar Fac Gar Fac Ext Cet Arc Hub Gar Fac Gar Fac Gar Res Gar Res Gar Res Gar Res Gar Acc Com Matter Collected 8233 | 200 3 . 415 . . 134 941 482 246 . 363 . 385 80 451 104 255 87 . . 174 . 186 35 160 23 456 . 320 . 606 176 589 857 505 Remotely . | . . . . . . . . . . . . . . . . . . . . . . . . . . . . . . . . . . . . Salvage Created 12896 | . . 23 640 . . 246 1996 1350 829 . 593 . 280 69 170 . 657 . . . 41 . 223 . 152 115 1105 . 592 . 1330 693 495 637 660 Parts 604 | . . 4 45 . . 9 130 60 35 . 35 . 8 4 11 . 19 . . . 4 . 10 . 12 3 35 . 29 . 48 31 13 31 28 Haulers Intercepted 4 | . . . 2 . . . 2 . . . . . . . . . . . . . . . . . . . . . . . . . . . . Recyclers Shooed 8 | . 1 . 4 . . . 1 . 1 . . . . . . . . . . . . . . . . . . . . . . . . . 1 Parts Field Recycled . | . . . . . . . . . . . . . . . . . . . . . . . . . . . . . . . . . . . . Retrieved Matter . | . . . . . . . . . . . . . . . . . . . . . . . . . . . . . . . . . . . . Parts Self-Destructed . | . . . . . . . . . . . . . . . . . . . . . . . . . . . . . . . . . . . . Prevented . | . . . . . . . . . . . . . . . . . . . . . . . . . . . . . . . . . . . . Kills | -11 -10 -10 -9 -9 -9 -8 -8 -8 -8 -7 -7 -7 -7 -6 -6 -6 -6 -6 -6 -6 -6 -5 -5 -4 -4 -3 -3 -3 -3 -2 -2 -2 -2 -1 -1 ------- Run | Scr Mat Min Mat Min Exi Min Mat Gar Mat Fac Gar Fac Gar Fac Gar Fac Ext Cet Arc Hub Gar Fac Gar Fac Gar Res Gar Res Gar Res Gar Res Gar Acc Com Combat Hostiles Destroyed 216 | . . 5 15 . . 3 41 27 14 . 23 . 8 1 8 . 2 . . . 1 . 5 . 3 1 10 . 9 . 18 6 7 3 6 Melee 72 | . . . . . . . 4 5 1 . 4 . . . 2 . 2 . . . 1 . 2 . 3 1 10 . 7 . 18 6 1 2 3 Guns 33 | . . . 15 . . 3 15 . . . . . . . . . . . . . . . . . . . . . . . . . . . . Cannons 23 | . . . . . . . 1 3 4 . 2 . 1 1 . . . . . . . . 1 . . . . . 2 . . . 6 1 1 AOE 78 | . . 5 . . . . 20 12 7 . 17 . 7 . 6 . . . . . . . 2 . . . . . . . . . . . 2 Classes Destroyed 21 | . . 1 4 . . 2 7 1 1 . . . . . 1 . . . . . . . 1 . . 1 . . 1 . . . 1 . . Worker 10 | . . . . . . 1 5 . . . . . . . . . . . . . . . . . . . . . . . . . . 4 . Builder 10 | . . . . . . . 4 . 4 . . . . . . . . . . . . . . . . . . . . . . . . 2 . Tunneler 2 | . . . . . . . . . 1 . . . . . . . . . . . . . . . . . . . . . . . . 1 . Hauler 4 | . . . 2 . . . 2 . . . . . . . . . . . . . . . . . . . . . . . . . . . . Recycler 15 | . . . . . . 1 3 . 4 . . . . . . . 2 . . . . . . . . . . . . . . 1 . 2 2 Operator 5 | . . . 1 . . . 1 . 1 . . . . . . . . . . . . . . . . . . . . . . 2 . . . Watcher 4 | . . . . . . . 1 . 1 . . . . . . . 1 . . . . . . . . . . . . . . . . 1 . Swarmer 55 | . . 5 6 . . . 5 10 . . 11 . 2 . 5 . . . . . . . . . 2 . 3 . 3 . 1 . 1 . 1 Cutter 3 | . . . . . . . . . . . . . . . . . . . . . . . 2 . . . . . . . . . 1 . . Grunt 83 | . . . 5 . . 3 23 4 10 . 9 . 5 . 2 . . . . . . . 1 . . . 6 . 2 . 10 . 3 . . Brawler 9 | . . . . . . . 1 . 2 . 2 . 1 . . . . . . . . . . . . . 2 . . . 1 . . . . Duelist 3 | . . . . . . . 3 . . . . . . . . . . . . . . . . . . . . . . . . . . . . Protector 1 | . . . . . . . 1 . . . . . . . . . . . . . . . . . . . . . . . . . . . . Sentry 31 | . . . 4 . . . 5 9 2 . 1 . . . . . 2 . . . . . 1 . . . . . 1 . 5 1 . . . Demolisher 1 | . . . . . . . . . . . . . . . . . . . . . . . . . . . . . . . . . 1 . . Specialist 3 | . . . . . . . 2 . . . . . . 1 . . . . . . . . . . . . . . . . . . . . . Hunter 9 | . . . . . . . . . . . . . . . . . . . . . . . . . . . . . 2 . 2 2 . 1 2 Programmer 22 | . . . . . . . . 4 . . . . . . . . . . . . 1 . 1 . 2 . 3 . 2 . . 3 1 2 3 Heavy 2 | . . . . . . . 1 . . . . . . . . . . . . . . . . . . . . . . . . . . . 1 Behemoth 3 | . . . . . . . . . . . . . . . . . . . . . . . . . . 1 1 . . . . . 1 . . Striker 1 | . . . . . . . . . . . . . . . 1 . . . . . . . . . . . . . . . . . . . . Savage 2 | . . . . . . . . . . . . . . . . . 2 . . . . . . . . . . . . . . . . . . Butcher 1 | . . . . . . . . . . . . . . . . . 1 . . . . . . . . . . . . . . . . . . Best Kill Streak 10 | . . 3 3 . . 5 10 8 7 . 6 . 6 1 3 . 1 . . . 1 . 4 . 1 1 2 . 2 . 4 2 4 3 2 Combat Bots Only 8 | . . 3 3 . . 2 6 8 5 . 6 . 6 1 3 . 1 . . . 1 . 4 . 1 1 2 . 2 . 4 2 4 1 2 Max Kills in Single Turn 4 | . . 2 2 . . 1 4 4 2 . 3 . 2 1 3 . 1 . . . 1 . 1 . 1 1 1 . 1 . 1 1 1 1 1 Gunslinging 1 | . . . 1 . . . . . . . . . . . . . . . . . . . . . . . . . . . . . . . . Exploded 4 | . . 2 . . . . 3 4 2 . 3 . 2 . 3 . . . . . . . 1 . . . . . . . . . . . 1 Melee 1 | . . . . . . . 1 1 1 . 1 . . . 1 . 1 . . . 1 . 1 . 1 1 1 . 1 . 1 1 1 1 1 Uniques/NPCs Destroyed 1 | . . . . . . . . . . . . . . . . . . . . . . . . . . . . . . . . . . . 1 MAIN.C Shell (-1/Command) Combat | -11 -10 -10 -9 -9 -9 -8 -8 -8 -8 -7 -7 -7 -7 -6 -6 -6 -6 -6 -6 -6 -6 -5 -5 -4 -4 -3 -3 -3 -3 -2 -2 -2 -2 -1 -1 -------- Run | Scr Mat Min Mat Min Exi Min Mat Gar Mat Fac Gar Fac Gar Fac Gar Fac Ext Cet Arc Hub Gar Fac Gar Fac Gar Res Gar Res Gar Res Gar Res Gar Acc Com Damage Taken 29489 | . 107 223 765 . . 351 2588 1207 382 . 789 . 254 47 663 . 577 27 . . 239 . 851 35 570 45 2137 . 2179 83 5641 1697 1416 352 6264 Core 4531 | . 18 47 127 . . 17 340 70 43 . 118 . 42 . 72 . 128 . . . 18 . 51 . 72 21 164 . 308 . 625 473 168 52 1557 Absorbed by Shields 2474 | . . . . . . . . . . . . . . . . . 62 26 . . . . . . . . 114 . 137 . 702 133 26 154 1120 Redirected to Shielding 97 | . . . . . . . . . . . . . . . . . . . . . . . . . . . . . . . 97 . . . . Regen/Repaired (Parts) 890 | . . . . . . . . . . . . . . 191 . . . . . . . . . . . . . . . . . . . 209 490 Core Remaining (%) 66 | 100 . 74 . . . 64 . . 17 . . . 77 . . . . . . . 74 . 94 . 93 . . . 62 . . . 12 . . Volleys Fired 607 | . . 5 44 . . 17 109 19 35 . 26 . 17 25 19 14 25 1 . 1 12 . 11 7 8 3 31 . 15 7 16 4 46 53 37 Largest 2 | . . 1 2 . . 2 2 1 1 . 1 . 1 1 1 1 1 1 . 1 1 . 1 1 1 1 1 . 1 1 1 1 1 1 2 Hottest 120 | . . 30 46 . . 46 120 120 120 . 120 . 120 120 39 5 120 39 . 5 5 . 120 5 120 5 120 . 120 10 10 10 120 120 119 Shots Fired 727 | . . 5 88 . . 25 172 19 34 . 26 . 17 25 19 14 25 1 . 1 12 . 11 7 8 3 31 . 15 7 16 4 47 53 42 Gun 248 | . . . 88 . . 25 135 . . . . . . . . . . . . . . . . . . . . . . . . . . . . Cannon 133 | . . . . . . . 8 4 17 . 3 . 1 8 . . 13 . . . . . 3 . 3 . 2 . 5 . . . 40 18 8 Launcher 109 | . . 5 . . . . 29 15 17 . 16 . 7 . 7 . . 1 . . . . 3 . . . . . . . . . . . 9 Special 237 | . . . . . . . . . . . 7 . 9 17 12 14 12 . . 1 12 . 5 7 5 3 29 . 10 7 16 4 7 35 25 Kinetic 267 | . . . 88 . . 25 101 . . . . . . . . . . . . . . . . . . . . . . . . . 29 16 8 Thermal 114 | . . . . . . . 42 4 17 . 3 . 1 8 . . 13 . . . . . 3 . 3 . 2 . 5 . . . 11 2 . Explosive 105 | . . 5 . . . . 25 15 17 . 16 . 7 . 7 . . 1 . . . . 3 . . . . . . . . . . . 9 Electromagnetic 4 | . . . . . . . 4 . . . . . . . . . . . . . . . . . . . . . . . . . . . . Robot Hit Streak 19 | . . 1 13 . . 8 9 10 11 . 8 . 8 17 8 7 9 4 . . 3 . 4 3 8 10 7 . 9 16 19 3 6 7 14 Robot Miss Streak 5 | . . 1 3 . . 1 4 1 1 . 2 . 1 4 1 1 1 . . 1 4 . 1 1 . 1 2 . 1 . 1 1 2 5 3 Penetration Max . | . . . . . . . . . . . . . . . . . . . . . . . . . . . . . . . . . . . . Secondary Targets 10 | . . . 4 . . . 6 . . . . . . . . . . . . . . . . . . . . . . . . . . . . Max Gunslinging Chain 1 | . . . 1 . . . 1 . . . . . . . . . . . . . . . . . . . . . . . . . . . . Shots Hit Robots 876 | . . 2 66 . . 22 121 70 24 . 26 . 12 15 21 11 28 1 . 1 9 . 15 5 13 4 68 . 39 8 102 30 25 51 87 Core Hits 456 | . . 7 31 . . 9 103 40 36 . 35 . 14 2 17 . 8 3 . . 2 . 9 . 4 1 24 . 15 . 34 10 10 11 31 Critical Kills 2 | . . . . . . . 1 1 . . . . . . . . . . . . . . . . . . . . . . . . . . . Critical Parts Destroyed 17 | . . . . . . . 3 11 3 . . . . . . . . . . . . . . . . . . . . . . . . . . Critical Strikes 56 | . . . . . . . 9 13 3 . 2 . . . . . . . . . . . 1 . . . 3 . 1 . 12 1 3 3 5 Burn 5 | . . . . . . . 5 . . . . . . . . . . . . . . . . . . . . . . . . . . . . Destroy 4 | . . . . . . . 4 . . . . . . . . . . . . . . . . . . . . . . . . . . . . Blast 4 | . . . . . . . . . . . . . . . . . . . . . . . . . . . . . . . . . 3 1 . Smash 15 | . . . . . . . . 12 3 . . . . . . . . . . . . . . . . . . . . . . . . . . Sever 3 | . . . . . . . . 1 . . 2 . . . . . . . . . . . . . . . . . . . . . . . . Impale 25 | . . . . . . . . . . . . . . . . . . . . . . . 1 . . . 3 . 1 . 12 1 . 2 5 Melee Attacks 667 | . . . . . . . 31 108 10 2 32 2 10 1 21 4 34 6 . 1 7 . 15 1 11 5 61 . 41 2 122 39 10 29 62 Impact 81 | . . . . . . . 1 70 10 . . . . . . . . . . . . . . . . . . . . . . . . . . Slashing 136 | . . . . . . . 30 38 . 2 32 2 10 1 21 . . . . . . . . . . . . . . . . . . . . Piercing 450 | . . . . . . . . . . . . . . . . 4 34 6 . 1 7 . 15 1 11 5 61 . 41 2 122 39 10 29 62 Sneak Attacks 85 | . . . . . . . 1 . 1 . 2 . . . . . 11 . . . . . 5 . 1 2 15 . 3 1 5 3 2 13 20 Combat Hostiles 25 | . . . . . . . . . . . 2 . . . . . . . . . . . 5 . . 2 8 . 2 . 3 . . 2 1 Follow-up Attacks . | . . . . . . . . . . . . . . . . . . . . . . . . . . . . . . . . . . . . Damage Inflicted 37365 | . 9 325 973 . . 374 4767 3786 2367 . 2427 . 1096 345 1121 . 1145 140 . 44 193 . 1156 . 467 166 2882 . 1422 69 3985 1229 1403 2013 3461 Guns 2857 | . . . 961 . . 368 1528 . . . . . . . . . . . . . . . . . . . . . . . . . . . . Cannons 4328 | . . . . . . . 277 139 608 . 102 . 32 280 . . 72 . . . . . 120 . 126 . 69 . 187 . . . 1174 720 422 Explosions 10002 | . . 323 . . . . 2488 938 1324 . 1884 . 1064 . 852 . . 140 . . . . 356 . . . . . . . . . . . 633 Melee 19970 | . . . . . . . 440 2709 434 . 441 . . . 269 . 1073 . . 44 193 . 680 . 329 166 2803 . 1235 69 3985 1229 229 1293 2349 Ramming 208 | . 9 2 12 . . 6 34 . 1 . . . . 65 . . . . . . . . . . 12 . 10 . . . . . . . 57 Kinetic 4505 | . . . 961 . . 368 1161 . . . . . . . . . . . . . . . . . . . . . . . . . 918 675 422 Thermal 3063 | . . . . . . . 1027 139 608 . 102 . 32 280 . . 72 . . . . . 120 . 126 . 69 . 187 . . . 256 45 . Explosive 9320 | . . 323 . . . . 1806 938 1324 . 1884 . 1064 . 852 . . 140 . . . . 356 . . . . . . . . . . . 633 Electromagnetic 299 | . . . . . . . 299 . . . . . . . . . . . . . . . . . . . . . . . . . . . . Impact 1185 | . . . . . . . . 751 434 . . . . . . . . . . . . . . . . . . . . . . . . . . Slashing 3108 | . . . . . . . 440 1958 . . 441 . . . 269 . . . . . . . . . . . . . . . . . . . . Piercing 15677 | . . . . . . . . . . . . . . . . . 1073 . . 44 193 . 680 . 329 166 2803 . 1235 69 3985 1229 229 1293 2349 Highest Corruption 19 | . . . . . . . 3 5 6 . . . . . . . 10 10 10 10 10 . . . 2 . 9 9 12 . 1 7 10 7 19 Average Corruption 6 | . . . . . . . 2 4 5 . . . . . . . 9 10 10 10 10 . . . 1 . 8 9 11 . 1 2 9 5 11 Corruption Purged . | . . . . . . . . . . . . . . . . . . . . . . . . . . . . . . . . . . . . Corruption Blocked . | . . . . . . . . . . . . . . . . . . . . . . . . . . . . . . . . . . . . Effects 302 | . . . . . . . 15 34 23 . . . . . . . 33 16 3 2 21 . . . 3 . 33 1 36 . 12 5 25 13 27 Message Errors 78 | . . . . . . . 4 3 5 . . . . . . . 6 6 1 1 10 . . . 1 . 8 . 14 . 2 1 6 4 6 Matter Fused 77 | . . . . . . . 3 13 4 . . . . . . . 9 1 2 . 4 . . . . . 7 1 7 . 4 3 6 2 11 Heat Flow Errors 51 | . . . . . . . 2 6 7 . . . . . . . 8 2 . . 1 . . . . . 6 . 5 . 2 . 3 5 4 Energy Discharges 25 | . . . . . . . 1 7 . . . . . . . . 2 1 . . 3 . . . 1 . 3 . 3 . 2 . 1 . 1 Parts Rejected 1 | . . . . . . . . . . . . . . . . . . . . . . . . . . . 1 . . . . . . . . Data Loss (minor) 40 | . . . . . . . 3 3 4 . . . . . . . 3 2 . . 2 . . . 1 . 4 . 6 . 2 . 7 1 2 Data Loss (major) 18 | . . . . . . . . 2 1 . . . . . . . 5 3 . . 1 . . . . . 3 . . . . 1 1 . 1 Misfires 2 | . . . . . . . 1 . . . . . . . . . . . . . . . . . . . . . . . . . 1 . . Alerts 7 | . . . . . . . 1 . 1 . . . . . . . . 1 . 1 . . . . . . 1 . . . . . . 1 1 Misdirections 2 | . . . . . . . . . . . . . . . . . . . . . . . . . . . . . 1 . . . . . 1 Weapon Failures 1 | . . . . . . . . . 1 . . . . . . . . . . . . . . . . . . . . . . . . . . Overload Shots . | . . . . . . . . . . . . . . . . . . . . . . . . . . . . . . . . . . . . Overflow Damage 1893 | . . 6 . . . . 58 353 109 . 52 . . . 8 . 192 . . . 36 . 4 . 39 . 152 . 72 29 151 95 52 312 173 Projectiles 195 | . . . . . . . . . 2 . . . . . . . 10 . . . . . . . . . . . 7 . . . 52 46 78 Explosions 97 | . . 6 . . . . 42 . 8 . 29 . . . 8 . . . . . . . 4 . . . . . . . . . . . . Melee 1601 | . . . . . . . 16 353 99 . 23 . . . . . 182 . . . 36 . . . 39 . 152 . 65 29 151 95 . 266 95 Knockbacks 13 | . . . . . . . . . 4 . . . . . . . . . . . . . . . . . . . . . . . 4 2 3 Impact 3 | . . . . . . . . . 3 . . . . . . . . . . . . . . . . . . . . . . . . . . Kinetic 9 | . . . . . . . . . . . . . . . . . . . . . . . . . . . . . . . . . 4 2 3 Secondary 1 | . . . . . . . . . 1 . . . . . . . . . . . . . . . . . . . . . . . . . . Self-Inflicted Damage 570 | . . 143 . . . . 130 3 108 . 122 . . . . . . . . . . . 64 . . . . . . . . . . . . Shots 20 | . . 5 . . . . 5 1 3 . 4 . . . . . . . . . . . 2 . . . . . . . . . . . . Rammed 28 | . . 3 5 . . 2 4 . 1 . . . . 11 . . . . . . . . . . 1 . 1 . . . . . . . . Targets Rammed 37 | . 1 3 5 . . 2 8 . 1 . . . . 11 . . . . . . . . . . 1 . 1 . . . . . . . 4 Kicked 5 | . 1 . . . . . . . . . . . . . . . . . . . . . . . . . . . . . . . . . 4 Crushed 4 | . . . . . . . 4 . . . . . . . . . . . . . . . . . . . . . . . . . . . . Highest Temperature 376 | . . . 194 . . 38 376 258 365 . 148 . 70 240 10 . 240 243 . . 114 . 174 . 186 . 207 . 311 . 199 . 210 202 247 Average Temperature 86 | . . . 42 . . 15 82 77 108 . 45 . 30 126 6 . 95 106 . . 62 . 83 . 99 . 82 . 112 . 103 . 62 73 99 Received Heat Transfer 4640 | . . . 315 . . 171 1071 351 144 . 273 . 42 12 75 . 219 . . . 63 . 154 18 12 . 204 . 108 9 886 71 184 . 258 Effects 3 | . . . . . . . 2 . 1 . . . . . . . . . . . . . . . . . . . . . . . . . . Interference 3 | . . . . . . . 2 . 1 . . . . . . . . . . . . . . . . . . . . . . . . . . Siege Activations . | . . . . . . . . . . . . . . . . . . . . . . . . . . . . . . . . . . . . Robots Corrupted . | . . . . . . . . . . . . . . . . . . . . . . . . . . . . . . . . . . . . Combat Hostiles . | . . . . . . . . . . . . . . . . . . . . . . . . . . . . . . . . . . . . Parts Fried 13 | . . . . . . . 2 7 2 . . . . . . . 1 . . . . . . . . . 1 . . . . . . . . Impact Corruptions 17 | . . . . . . . . 14 3 . . . . . . . . . . . . . . . . . . . . . . . . . . Robots Melted 1 | . . . . . . . 1 . . . . . . . . . . . . . . . . . . . . . . . . . . . . Combat Hostiles 1 | . . . . . . . 1 . . . . . . . . . . . . . . . . . . . . . . . . . . . . Parts Melted 12 | . . . . . . . 4 1 2 . . . . 1 . . . . . . . . 1 . . . . . . . 1 . 2 . . Heat Transferred 6731 | . . . . . . . 2374 320 1360 . 240 . 80 640 . . 160 . . . . . 240 . 240 . 160 . 400 . . . 480 37 . Parts Sabotaged . | . . . . . . . . . . . . . . . . . . . . . . . . . . . . . . . . . . . . Parts Stolen . | . . . . . . . . . . . . . . . . . . . . . . . . . . . . . . . . . . . . Parts Stripped . | . . . . . . . . . . . . . . . . . . . . . . . . . . . . . . . . . . . . Power Chain Reactions 5 | . . . . . . . 5 . . . . . . . . . . . . . . . . . . . . . . . . . . . . Missiles Intercepted 2 | . . . . . . . . . . . . . . . . . . . . . . . . . . . . . . . . . . . 2 Alert | -11 -10 -10 -9 -9 -9 -8 -8 -8 -8 -7 -7 -7 -7 -6 -6 -6 -6 -6 -6 -6 -6 -5 -5 -4 -4 -3 -3 -3 -3 -2 -2 -2 -2 -1 -1 ------- Run | Scr Mat Min Mat Min Exi Min Mat Gar Mat Fac Gar Fac Gar Fac Gar Fac Ext Cet Arc Hub Gar Fac Gar Fac Gar Res Gar Res Gar Res Gar Res Gar Acc Com Peak Influence 1748 | . . 209 436 145 . 70 1102 1748 1259 573 1244 666 783 476 698 409 286 555 340 215 922 483 1085 630 361 249 545 306 369 207 384 235 124 256 218 Initial 852 | . . . 81 145 . . 27 716 852 572 401 653 466 410 97 366 91 160 169 119 150 483 338 569 263 202 186 306 229 207 138 216 12 48 73 Average 434 | . . 126 249 145 . 25 407 1394 1074 572 1010 655 620 295 333 311 86 362 240 199 619 483 808 474 272 217 318 306 290 179 183 201 71 142 63 Maximum Alert Level 5 | . . 1 2 . . . 4 5 4 2 4 2 3 2 2 2 1 2 1 1 3 2 3 2 1 1 2 1 1 1 1 1 . 1 1 Low Security (%) 35 | . 100 96 33 100 . 100 33 . . . . . . 37 32 23 91 7 52 21 13 . . . . . 16 . . 83 65 14 100 78 92 Level 1 29 | . . 3 62 . . . 21 . . . . . . 30 26 60 8 58 48 78 20 . 23 49 100 100 62 100 100 16 34 85 . 21 7 Level 2 14 | . . . 3 . . . 25 . . 100 22 100 79 31 41 15 . 34 . . 11 100 1 50 . . 21 . . . . . . . . Level 3 11 | . . . . . . . 17 23 63 . 17 . 20 . . . . . . . 54 . 74 . . . . . . . . . . . . Level 4 7 | . . . . . . . 2 50 36 . 59 . . . . . . . . . . . . . . . . . . . . . . . . Level 5 1 | . . . . . . . . 26 . . . . . . . . . . . . . . . . . . . . . . . . . . . High Security . | . . . . . . . . . . . . . . . . . . . . . . . . . . . . . . . . . . . . Max Security . | . . . . . . . . . . . . . . . . . . . . . . . . . . . . . . . . . . . . Squads Dispatched 33 | . . . 1 . . . 6 . 3 . . . . 4 . 1 . . . 1 . . . 2 . . . . . 1 . 4 . 9 1 Investigation 3 | . . . . . . . 1 . 1 . . . . . . . . . . . . . . . . . . . . . . . . 1 . Extermination 5 | . . . . . . . . . . . . . . . . 1 . . . . . . . . . . . . . . . 1 . 2 1 Reinforcement 18 | . . . 1 . . . 4 . 2 . . . . 3 . . . . . 1 . . . 1 . . . . . 1 . 2 . 3 . Assault 3 | . . . . . . . 1 . . . . . . . . . . . . . . . . 1 . . . . . . . . . 1 . Garrison 4 | . . . . . . . . . . . . . . 1 . . . . . . . . . . . . . . . . . 1 . 2 . Intercept . | . . . . . . . . . . . . . . . . . . . . . . . . . . . . . . . . . . . . Searches Triggered . | . . . . . . . . . . . . . . . . . . . . . . . . . . . . . . . . . . . . Construction Impeded 4 | . . . . . . . 1 . 1 . . . . 1 . . . . . . . . . . . . . . . . . . . 1 . Haulers Reinforced . | . . . . . . . . . . . . . . . . . . . . . . . . . . . . . . . . . . . . Active Scanning Responses . | . . . . . . . . . . . . . . . . . . . . . . . . . . . . . . . . . . . . Cargo Convoy Interrupts . | . . . . . . . . . . . . . . . . . . . . . . . . . . . . . . . . . . . . Stealth | -11 -10 -10 -9 -9 -9 -8 -8 -8 -8 -7 -7 -7 -7 -6 -6 -6 -6 -6 -6 -6 -6 -5 -5 -4 -4 -3 -3 -3 -3 -2 -2 -2 -2 -1 -1 --------- Run | Scr Mat Min Mat Min Exi Min Mat Gar Mat Fac Gar Fac Gar Fac Gar Fac Ext Cet Arc Hub Gar Fac Gar Fac Gar Res Gar Res Gar Res Gar Res Gar Acc Com Distress Signals 33 | . . . 2 . . . 3 . 2 . . . . 3 . 1 2 2 . . . . . . . . . . . 1 . . . 6 11 Communications Jammed . | . . . . . . . . . . . . . . . . . . . . . . . . . . . . . . . . . . . . Distress Signals . | . . . . . . . . . . . . . . . . . . . . . . . . . . . . . . . . . . . . Times Spotted 552 | . . 6 22 . . 3 67 27 20 . 21 . 16 5 26 10 16 11 5 1 23 . 28 4 9 3 47 . 23 5 53 13 19 42 27 Peak Tracking Total 14 | . . 2 4 . . 3 7 6 6 . 7 . 6 2 5 4 5 5 7 . 8 . 8 4 4 2 8 . 6 3 14 4 7 7 9 Tactical Retreats 26 | . . . . . . . 10 1 3 . 2 . . . . 1 . . . . . . 2 . . . 1 . . 1 3 . . 1 1 Traps | -11 -10 -10 -9 -9 -9 -8 -8 -8 -8 -7 -7 -7 -7 -6 -6 -6 -6 -6 -6 -6 -6 -5 -5 -4 -4 -3 -3 -3 -3 -2 -2 -2 -2 -1 -1 ------- Run | Scr Mat Min Mat Min Exi Min Mat Gar Mat Fac Gar Fac Gar Fac Gar Fac Ext Cet Arc Hub Gar Fac Gar Fac Gar Res Gar Res Gar Res Gar Res Gar Acc Com Traps Triggered 21 | . 1 . . . . . 2 . 1 . . . . 1 1 . 2 . . . . . 1 . . . 4 . 1 . 5 . . 2 . Indirectly . | . . . . . . . . . . . . . . . . . . . . . . . . . . . . . . . . . . . . Trap Hack Attempts . | . . . . . . . . . . . . . . . . . . . . . . . . . . . . . . . . . . . . Triggered . | . . . . . . . . . . . . . . . . . . . . . . . . . . . . . . . . . . . . Disarmed . | . . . . . . . . . . . . . . . . . . . . . . . . . . . . . . . . . . . . Reprogrammed . | . . . . . . . . . . . . . . . . . . . . . . . . . . . . . . . . . . . . Reused . | . . . . . . . . . . . . . . . . . . . . . . . . . . . . . . . . . . . . Traps Extracted . | . . . . . . . . . . . . . . . . . . . . . . . . . . . . . . . . . . . . Installed . | . . . . . . . . . . . . . . . . . . . . . . . . . . . . . . . . . . . . Triggered . | . . . . . . . . . . . . . . . . . . . . . . . . . . . . . . . . . . . . Machines | -11 -10 -10 -9 -9 -9 -8 -8 -8 -8 -7 -7 -7 -7 -6 -6 -6 -6 -6 -6 -6 -6 -5 -5 -4 -4 -3 -3 -3 -3 -2 -2 -2 -2 -1 -1 ---------- Run | Scr Mat Min Mat Min Exi Min Mat Gar Mat Fac Gar Fac Gar Fac Gar Fac Ext Cet Arc Hub Gar Fac Gar Fac Gar Res Gar Res Gar Res Gar Res Gar Acc Com Machines Disabled 52 | . . . 1 . . . 6 3 . . 3 1 3 . 6 . . 2 . . . . 4 . 2 . 7 . 3 1 4 . 4 1 1 Max in Single Turn 2 | . . . 1 . . . 1 2 . . 1 1 1 . 1 . . 1 . . . . 1 . 1 . 1 . 1 . 1 . 1 1 . Garrison Access 3 | . . . . . . . . . . . . . . . . . . . . . . . . 1 . . . . . . . . . 2 . Garrison Relay 27 | . . . . . . . . 2 . . 3 . 3 . 4 . . . . . . . . . 2 . 4 . 3 . 3 . 3 . . Phase Generator 1 | . . . . . . . . . . . . . . . . . . . . . . . . . . . . . . . 1 . . . . Machines Sabotaged . | . . . . . . . . . . . . . . . . . . . . . . . . . . . . . . . . . . . . Garrisons Compromised . | . . . . . . . . . . . . . . . . . . . . . . . . . . . . . . . . . . . . Overloaded Fab Kills . | . . . . . . . . . . . . . . . . . . . . . . . . . . . . . . . . . . . . Hacking | -11 -10 -10 -9 -9 -9 -8 -8 -8 -8 -7 -7 -7 -7 -6 -6 -6 -6 -6 -6 -6 -6 -5 -5 -4 -4 -3 -3 -3 -3 -2 -2 -2 -2 -1 -1 --------- Run | Scr Mat Min Mat Min Exi Min Mat Gar Mat Fac Gar Fac Gar Fac Gar Fac Ext Cet Arc Hub Gar Fac Gar Fac Gar Res Gar Res Gar Res Gar Res Gar Acc Com Machines Accessed 75 | . 1 . 4 . 1 . 7 2 6 3 2 2 1 2 2 3 9 1 1 1 1 1 3 1 1 1 2 1 1 2 3 1 1 6 2 Terminals 55 | . 1 . 4 . . . 6 2 6 . 2 1 1 . 2 2 9 1 . . 1 . 3 . 1 . 2 . 1 . 3 . 1 4 2 Fabricators 4 | . . . . . . . . . . 2 . . . 1 . . . . . . . . . . . . . . . 1 . . . . . Repair Stations . | . . . . . . . . . . . . . . . . . . . . . . . . . . . . . . . . . . . . Recycling Units . | . . . . . . . . . . . . . . . . . . . . . . . . . . . . . . . . . . . . Scanalyzers 1 | . . . . . . . . . . . . . . . . 1 . . . . . . . . . . . . . . . . . . . Garrison Access 13 | . . . . . . . 1 . . 1 . 1 . 1 . . . . . 1 . 1 . 1 . 1 . 1 . 1 . 1 . 2 . Total Hacks 150 | . 2 . 11 . 1 . 14 7 15 5 2 4 1 6 3 4 18 1 19 1 3 1 3 1 1 1 3 1 1 3 3 3 2 8 2 Successful 82 | . . . 3 . 1 . 5 . 6 2 2 1 1 3 1 3 10 . 19 1 1 1 2 1 1 1 1 1 1 1 2 2 2 6 1 Failed 68 | . 2 . 8 . . . 9 7 9 3 . 3 . 3 2 1 8 1 . . 2 . 1 . . . 2 . . 2 1 1 . 2 1 Catastrophic 17 | . . . 1 . . . 3 2 4 2 . 1 . 1 . . . 1 . . . . . . . . 1 . . 1 . . . . . Database Lockouts . | . . . . . . . . . . . . . . . . . . . . . . . . . . . . . . . . . . . . Manual 49 | . 2 . 7 . 1 . 10 . 8 2 . 3 . 3 . . 6 1 . . . . . . . . . . . 1 . 2 1 1 1 Terminals 101 | . 2 . 11 . . . 13 7 15 . 2 2 1 . 3 2 18 1 . . 3 . 3 . 1 . 3 . 1 . 3 . 2 6 2 Fabricators 8 | . . . . . . . . . . 3 . . . 4 . . . . . . . . . . . . . . . 1 . . . . . Repair Stations . | . . . . . . . . . . . . . . . . . . . . . . . . . . . . . . . . . . . . Recycling Units . | . . . . . . . . . . . . . . . . . . . . . . . . . . . . . . . . . . . . Scanalyzers 2 | . . . . . . . . . . . . . . . . 2 . . . . . . . . . . . . . . . . . . . Garrison Access 19 | . . . . . . . 1 . . 2 . 2 . 2 . . . . . 1 . 1 . 1 . 1 . 1 . 2 . 3 . 2 . Terminal Hacks 57 | . . . 3 . 1 . 4 . 3 . 2 . 1 . 1 1 7 . 19 . 1 . 2 . 1 . 1 . 1 . 2 . 2 4 1 Record 19 | . . . . . . . . . . . . . . . . . . . 19 . . . . . . . . . . . . . . . . Robot Schematic 1 | . . . 1 . . . . . . . . . . . . . . . . . . . . . . . . . . . . . . . . Open Door 12 | . . . . . . . . . . . . . . . . 1 6 . . . . . 1 . . . . . . . 1 . . 2 1 Level Access Points 1 | . . . . . . . . . 1 . . . . . . . . . . . . . . . . . . . . . . . . . . Emergency Access Points 5 | . . . . . . . . . . . 1 . 1 . 1 . . . . . . . 1 . . . . . . . . . 1 . . Terminal Index 5 | . . . 1 . . . 1 . 1 . . . . . . . 1 . . . . . . . . . . . . . . . . 1 . Hauler Manifests 1 | . . . . . . . 1 . . . . . . . . . . . . . . . . . . . . . . . . . . . . Registered Components 1 | . . . . . . . 1 . . . . . . . . . . . . . . . . . . . . . . . . . . . . Zone Layout 4 | . . . 1 . . . 1 . 1 . . . . . . . . . . . . . . . . . . . . . . . . 1 . Garrison Registry 7 | . . . . . . . . . . . 1 . . . . . . . . . 1 . . . 1 . 1 . 1 . 1 . 1 . . EX-Prototype ID Bank 1 | . . . . . 1 . . . . . . . . . . . . . . . . . . . . . . . . . . . . . . Fabricator Hacks 3 | . . . . . . . . . . 1 . . . 2 . . . . . . . . . . . . . . . . . . . . . Network Status 1 | . . . . . . . . . . 1 . . . . . . . . . . . . . . . . . . . . . . . . . Load Schematic 1 | . . . . . . . . . . . . . . 1 . . . . . . . . . . . . . . . . . . . . . Build 1 | . . . . . . . . . . . . . . 1 . . . . . . . . . . . . . . . . . . . . . Repair Station Hacks . | . . . . . . . . . . . . . . . . . . . . . . . . . . . . . . . . . . . . Recycling Unit Hacks . | . . . . . . . . . . . . . . . . . . . . . . . . . . . . . . . . . . . . Scanalyzer 2 | . . . . . . . . . . . . . . . . 2 . . . . . . . . . . . . . . . . . . . Insert Component 1 | . . . . . . . . . . . . . . . . 1 . . . . . . . . . . . . . . . . . . . Analyze 1 | . . . . . . . . . . . . . . . . 1 . . . . . . . . . . . . . . . . . . . Garrison Access Hacks 12 | . . . . . . . 1 . . 1 . 1 . 1 . . . . . 1 . 1 . 1 . 1 . 1 . 1 . 1 . 1 . Unlock Access 11 | . . . . . . . 1 . . 1 . 1 . 1 . . . . . 1 . 1 . 1 . 1 . 1 . 1 . 1 . . . Seal Access 1 | . . . . . . . . . . . . . . . . . . . . . . . . . . . . . . . . . . 1 . Unauthorized Hacks 8 | . . . . . . . . . 3 . . . . . . . 3 . . . . . . . . . . . . . . 1 . 1 . Terminals 6 | . . . . . . . . . 3 . . . . . . . 3 . . . . . . . . . . . . . . . . . . Assimilate 2 | . . . . . . . . . 1 . . . . . . . 1 . . . . . . . . . . . . . . . . . . Botnet 2 | . . . . . . . . . 1 . . . . . . . 1 . . . . . . . . . . . . . . . . . . Operators 2 | . . . . . . . . . 1 . . . . . . . 1 . . . . . . . . . . . . . . . . . . Fabricators . | . . . . . . . . . . . . . . . . . . . . . . . . . . . . . . . . . . . . Repair Stations . | . . . . . . . . . . . . . . . . . . . . . . . . . . . . . . . . . . . . Recycling Units . | . . . . . . . . . . . . . . . . . . . . . . . . . . . . . . . . . . . . Scanalyzers . | . . . . . . . . . . . . . . . . . . . . . . . . . . . . . . . . . . . . Garrison Access 2 | . . . . . . . . . . . . . . . . . . . . . . . . . . . . . . . . 1 . 1 . Restock 1 | . . . . . . . . . . . . . . . . . . . . . . . . . . . . . . . . 1 . . . Reprogram 1 | . . . . . . . . . . . . . . . . . . . . . . . . . . . . . . . . . . 1 . Data Cores Recovered 2 | . . . . . . . 1 . 1 . . . . . . . . . . . . . . . . . . . . . . . . . . Used 1 | . . . . . . . . . 1 . . . . . . . . . . . . . . . . . . . . . . . . . . Hacking Detections 51 | . 1 . 4 . . . 5 2 5 2 1 2 1 2 2 2 5 1 . . 1 . 1 . 1 . 2 1 . 2 1 1 1 4 1 Full Trace Events 5 | . 1 . . . . . 1 2 1 . . . . . . . . . . . . . . . . . . . . . . . . . . Feedback Events . | . . . . . . . . . . . . . . . . . . . . . . . . . . . . . . . . . . . . Feedback Blocked . | . . . . . . . . . . . . . . . . . . . . . . . . . . . . . . . . . . . . Robot Schematics Acquired 1 | . . . 1 . . . . . . . . . . . . . . . . . . . . . . . . . . . . . . . . Robots Built 1 | . . . . . . . . . . . . . . 1 . . . . . . . . . . . . . . . . . . . . . Authchips 1 | . . . . . . . . . . . . . . 1 . . . . . . . . . . . . . . . . . . . . . Time 27 | . . . . . . . . . . . . . . 27 . . . . . . . . . . . . . . . . . . . . . Total Robot Build Rating 1 | . . . . . . . . . . . . . . 1 . . . . . . . . . . . . . . . . . . . . . Part Schematics Acquired 1 | . . . . . . . . . . . . . . . . 1 . . . . . . . . . . . . . . . . . . . Parts Built . | . . . . . . . . . . . . . . . . . . . . . . . . . . . . . . . . . . . . Authchips . | . . . . . . . . . . . . . . . . . . . . . . . . . . . . . . . . . . . . Time . | . . . . . . . . . . . . . . . . . . . . . . . . . . . . . . . . . . . . Total Part Build Rating . | . . . . . . . . . . . . . . . . . . . . . . . . . . . . . . . . . . . . Parts Repaired . | . . . . . . . . . . . . . . . . . . . . . . . . . . . . . . . . . . . . Time . | . . . . . . . . . . . . . . . . . . . . . . . . . . . . . . . . . . . . Parts Recycled . | . . . . . . . . . . . . . . . . . . . . . . . . . . . . . . . . . . . . Recycled Matter . | . . . . . . . . . . . . . . . . . . . . . . . . . . . . . . . . . . . . Retrieved Matter . | . . . . . . . . . . . . . . . . . . . . . . . . . . . . . . . . . . . . Retrieved Components . | . . . . . . . . . . . . . . . . . . . . . . . . . . . . . . . . . . . . Parts Scanalyzed 1 | . . . . . . . . . . . . . . . . 1 . . . . . . . . . . . . . . . . . . . Part Schematics Acquired 1 | . . . . . . . . . . . . . . . . 1 . . . . . . . . . . . . . . . . . . . Parts Damaged . | . . . . . . . . . . . . . . . . . . . . . . . . . . . . . . . . . . . . Bothacking | -11 -10 -10 -9 -9 -9 -8 -8 -8 -8 -7 -7 -7 -7 -6 -6 -6 -6 -6 -6 -6 -6 -5 -5 -4 -4 -3 -3 -3 -3 -2 -2 -2 -2 -1 -1 ------------ Run | Scr Mat Min Mat Min Exi Min Mat Gar Mat Fac Gar Fac Gar Fac Gar Fac Ext Cet Arc Hub Gar Fac Gar Fac Gar Res Gar Res Gar Res Gar Res Gar Acc Com Used RIF Installer 12 | . . . . . . . . 1 . . 1 . 1 . 2 . . . . . 1 . 1 . 1 . 1 . 1 . 1 . 1 . . Coupler Efficiency 2 | . . . . . . . . . . . . . . . 1 . . . . . . . . . 1 . . . . . . . . . . Command Fork 2 | . . . . . . . . . . . . . . . . . . . . . . . . . . . . . 1 . 1 . . . . Threat Obfuscator 3 | . . . . . . . . . . . 1 . . . . . . . . . 1 . . . . . 1 . . . . . . . . Structural Interface 1 | . . . . . . . . . . . . . 1 . . . . . . . . . . . . . . . . . . . . . . Program Shield 1 | . . . . . . . . . . . . . . . . . . . . . . . 1 . . . . . . . . . . . . Autooverride 2 | . . . . . . . . . . . . . . . 1 . . . . . . . . . . . . . . . . . 1 . . Robots Hacked 166 | . . . . . . . . . . . 4 . 6 8 7 5 7 2 . . 8 . 4 3 4 2 26 . 12 5 15 1 6 27 14 Non-combat 25 | . . . . . . . . . . . . . . 7 . 1 3 . . . . . . 1 . . . . . 1 . . 1 7 4 Combat 140 | . . . . . . . . . . . 4 . 6 1 7 4 4 2 . . 8 . 4 2 4 2 26 . 12 4 15 1 5 20 9 Autooverrided 47 | . . . . . . . . . . . . . . . . . . 2 . . 5 . 1 . 1 . 9 . 6 1 5 . 3 11 3 Robot Hacks Applied 133 | . . . . . . . . . . . 4 . 6 9 7 8 7 . . . 4 . 4 6 3 3 18 . 6 5 11 1 3 17 11 parse_system 2 | . . . . . . . . . . . . . . . . . . . . . . . . . . . . . . . . . . . 2 ignore_repairs 1 | . . . . . . . . . . . . . . . . . 1 . . . . . . . . . . . . . . . . . . map_walls 4 | . . . . . . . . . . . . . . 2 . . . . . . . . . . . . . . . . . . . 2 . drop_inventory 3 | . . . . . . . . . . . . . . 2 . . . . . . . . . . . . . . . . . . . 1 . ignore_parts 1 | . . . . . . . . . . . . . . . . . 1 . . . . . . . . . . . . . . . . . . purge_threat 4 | . . . . . . . . . . . . . . 1 . 1 . . . . . . . 2 . . . . . . . . . . . block_reporting 1 | . . . . . . . . . . . . . . . . 1 . . . . . . . . . . . . . . . . . . . map_route 2 | . . . . . . . . . . . . . . . . . . . . . . . . . . . . . . . . . . 2 . relay_feed 1 | . . . . . . . . . . . . . . . . . . . . . . . . . . . . . . . . . . . 1 find_garrison 4 | . . . . . . . . . . . . . . . . 1 . . . . . . . 1 . 1 . . . 1 . . . . . disrupt_area 1 | . . . . . . . . . . . . . . . . . . . . . . . . . . . . . . . 1 . . . . reboot_system 8 | . . . . . . . . . . . 1 . . 1 . . . . . . 1 . 1 . . 1 1 . . . . . . 2 . go_dormant 1 | . . . . . . . . . . . . . 1 . . . . . . . . . . . . . . . . . . . . . . overwrite_iff 25 | . . . . . . . . . . . . . 2 . . 2 1 . . . 2 . 1 2 . . 10 . 1 1 2 . . . 1 formatsys_low 9 | . . . . . . . . . . . . . . 3 . 1 . . . . . . . 1 . . . . . 1 . . . 1 2 formatsys_high 66 | . . . . . . . . . . . 3 . 3 . 7 2 4 . . . 1 . 2 . 3 1 7 . 5 2 8 1 3 9 5 Manual 1 | . . . . . . . . . . . . . . . . . . . . . . . . . . . . . . . . . . . 1 Relay Couplers Released 106 | . . . . . . . . 8 . . 11 . 11 . 17 . . . . . . . . 2 7 . 13 . 14 . 11 . 11 1 . Machine Destruction 106 | . . . . . . . . 8 . . 11 . 11 . 17 . . . . . . . . 2 7 . 13 . 14 . 11 . 11 1 . Attached 75 | . . . . . . . . . . . 3 . 4 2 6 1 2 . . . 6 . 2 1 7 . 8 . 5 1 8 . 9 6 4 Fabnet Peak Effective % . | . . . . . . . . . . . . . . . . . . . . . . . . . . . . . . . . . . . . Robots Rewired 24 | . . . . . . . . . . . . . . . 2 . 14 . . . . . 5 . . . . . . . 3 . . . . Allies Hacked 2 | . . . . . . . . . . . . . . . . . . . . . . . . . . . 1 . . . . . . 1 . Hacks Repelled . | . . . . . . . . . . . . . . . . . . . . . . . . . . . . . . . . . . . . Allies | -11 -10 -10 -9 -9 -9 -8 -8 -8 -8 -7 -7 -7 -7 -6 -6 -6 -6 -6 -6 -6 -6 -5 -5 -4 -4 -3 -3 -3 -3 -2 -2 -2 -2 -1 -1 -------- Run | Scr Mat Min Mat Min Exi Min Mat Gar Mat Fac Gar Fac Gar Fac Gar Fac Ext Cet Arc Hub Gar Fac Gar Fac Gar Res Gar Res Gar Res Gar Res Gar Acc Com Total Allies 200 | . . . . . . . . . . . 3 . 5 4 9 5 28 7 . . 7 . 8 3 4 1 25 . 14 6 22 2 7 28 12 Largest Group 20 | . . . . . . . . . . . 2 1 3 5 5 6 20 20 9 6 10 6 8 7 5 3 8 4 5 2 11 2 4 10 6 Highest-Rated Group 1092 | . . . . . . . . . . . 32 16 85 109 267 164 744 1092 740 508 643 527 618 372 257 236 411 205 315 178 517 116 182 683 811 Highest-Rated Ally 215 | . . . . . . . . . . . 16 16 40 32 99 89 159 159 159 96 96 96 99 96 116 116 116 64 116 148 69 69 67 178 215 Total Orders 19 | . . . . . . . . . . . . . . 1 1 . . 1 . . . . . . 3 4 1 . . . . . . 1 7 STAY 9 | . . . . . . . . . . . . . . . 1 . . 1 . . . . . . 2 2 1 . . . . . . . 2 FOLLOW 5 | . . . . . . . . . . . . . . . . . . . . . . . . . 1 2 . . . . . . . . 2 AID 5 | . . . . . . . . . . . . . . 1 . . . . . . . . . . . . . . . . . . . 1 3 Ally Attacks 1258 | . . . . . . . . . . . 3 . 17 7 64 20 75 100 23 9 116 . 128 27 18 2 101 . 74 11 156 12 46 164 85 Total Damage 46664 | . . . . . . . . . . . 16 . 269 314 1863 496 1894 2759 783 419 3525 . 3892 752 487 101 2926 . 2920 215 6294 479 1003 6089 9168 Kills 222 | . . . . . . . . . . . . . 5 3 11 3 16 21 7 2 23 . 26 5 5 . 17 . 13 1 24 1 6 25 8 Allies Corrupted 13 | . . . . . . . . . . . . . . . 1 2 2 . . . . . . . . . 1 . 1 . . 1 1 1 3 Allies Melted 4 | . . . . . . . . . . . . . . . . . . . . . . . . . . . 1 . . . . . . . 3 Intel | -11 -10 -10 -9 -9 -9 -8 -8 -8 -8 -7 -7 -7 -7 -6 -6 -6 -6 -6 -6 -6 -6 -5 -5 -4 -4 -3 -3 -3 -3 -2 -2 -2 -2 -1 -1 ------- Run | Scr Mat Min Mat Min Exi Min Mat Gar Mat Fac Gar Fac Gar Fac Gar Fac Ext Cet Arc Hub Gar Fac Gar Fac Gar Res Gar Res Gar Res Gar Res Gar Acc Com Robot Analysis Total . | . . . . . . . . . . . . . . . . . . . . . . . . . . . . . . . . . . . . Derelict Logs Recovered . | . . . . . . . . . . . . . . . . . . . . . . . . . . . . . . . . . . . . Drone Launches . | . . . . . . . . . . . . . . . . . . . . . . . . . . . . . . . . . . . . Drone Recoveries . | . . . . . . . . . . . . . . . . . . . . . . . . . . . . . . . . . . . . Exploration | -11 -10 -10 -9 -9 -9 -8 -8 -8 -8 -7 -7 -7 -7 -6 -6 -6 -6 -6 -6 -6 -6 -5 -5 -4 -4 -3 -3 -3 -3 -2 -2 -2 -2 -1 -1 ------------- Run | Scr Mat Min Mat Min Exi Min Mat Gar Mat Fac Gar Fac Gar Fac Gar Fac Ext Cet Arc Hub Gar Fac Gar Fac Gar Res Gar Res Gar Res Gar Res Gar Acc Com Turns Passed 22319 | . 85 208 739 132 472 248 1705 1585 627 108 969 228 688 638 1226 319 1500 480 75 51 744 79 868 163 694 126 1531 22 943 280 1829 437 702 996 822 Spaces Moved 11624 | 1 52 119 335 83 293 121 714 738 293 63 490 140 380 349 639 178 696 279 44 25 428 46 435 93 404 64 838 15 524 158 868 252 396 633 438 Core 105 | . . . . . . . . . . . . . . . . . . . . . . . . . . . . . . . . . . . 105 Treads 9925 | . 43 119 335 83 293 121 714 738 293 63 490 140 380 349 639 178 696 279 44 25 428 46 435 93 404 64 838 15 524 158 830 . . . 68 Legs 1594 | 1 9 . . . . . . . . . . . . . . . . . . . . . . . . . . . . . 38 252 396 633 265 Wheels . | . . . . . . . . . . . . . . . . . . . . . . . . . . . . . . . . . . . . Hover . | . . . . . . . . . . . . . . . . . . . . . . . . . . . . . . . . . . . . Flight . | . . . . . . . . . . . . . . . . . . . . . . . . . . . . . . . . . . . . Fastest Speed 50 | 120 120 160 160 160 160 160 145 151 160 160 160 160 160 160 160 160 160 160 160 160 160 160 160 160 152 152 145 145 145 145 117 117 116 110 50 Average Speed 150 | 120 153 160 160 160 160 160 155 156 160 160 160 160 160 160 160 160 160 160 160 160 160 160 160 160 155 152 151 145 146 145 153 117 118 116 104 Slowest Speed 240 | 120 160 160 160 160 160 160 160 160 160 160 160 160 160 160 160 160 160 160 160 160 160 160 160 160 160 152 152 145 155 145 240 117 190 120 240 Overloaded Moves . | . . . . . . . . . . . . . . . . . . . . . . . . . . . . . . . . . . . . Propulsion Burnouts . | . . . . . . . . . . . . . . . . . . . . . . . . . . . . . . . . . . . . Robots Hopped 1 | . . . . . . . . . . . . . . . . . . . . . . . . . . . . . . . . . . 1 . Cave-ins Triggered 1 | . . . . . . . . . . . . . . . . . . . . . . . . . . . . . . . . . . . 1 Exploration Rate (%) 39 | 2 14 23 50 42 68 39 80 85 47 4 70 8 55 11 93 7 63 69 64 5 70 3 66 4 35 4 83 1 62 8 87 7 53 17 18 Regions Visited 35 Branch Regions 9 Pre-discovered Areas . | . . . . . . . . . . . . . . . . . . . . . . . . . . . . . . . . . . . . Known Exits Taken 13 | . . . . . . . 1 . 1 1 . 1 . 1 . . . . . 1 . 1 . 1 . 1 . 1 . 1 . 1 . 1 . Unknown Exits Taken 11 | 1 1 1 1 1 1 1 . . . . . . . . . 1 1 1 1 . . . . . . . . . . . . . . . . Scrap Searched . | . . . . . . . . . . . . . . . . . . . . . . . . . . . . . . . . . . . . Spaces Dug 227 | . . 7 . . . . 42 26 61 1 40 1 . 1 3 . 12 1 . . . . 4 1 . 2 1 . . 1 1 5 13 4 . Terrain Destroyed 836 | . . 42 . . . . 176 56 194 1 159 1 37 1 39 . 12 19 . . . . 9 1 . 2 1 . . 1 1 5 24 6 49 Melee 53 | . . . . . . . 11 21 . 1 1 1 . 1 . . 1 1 . . . . . 1 . 2 1 . . 1 1 5 2 2 . Projectile 37 | . . . . . . . . . . . . . . . . . 11 . . . . . . . . . . . . . . . 22 4 . AOE 746 | . . 42 . . . . 165 35 194 . 158 . 37 . 39 . . 18 . . . . 9 . . . . . . . . . . . 49 Terrain Rammed . | . . . . . . . . . . . . . . . . . . . . . . . . . . . . . . . . . . . . Walls Destroyed . | . . . . . . . . . . . . . . . . . . . . . . . . . . . . . . . . . . . . Machines Disabled . | . . . . . . . . . . . . . . . . . . . . . . . . . . . . . . . . . . . . Actions | -11 -10 -10 -9 -9 -9 -8 -8 -8 -8 -7 -7 -7 -7 -6 -6 -6 -6 -6 -6 -6 -6 -5 -5 -4 -4 -3 -3 -3 -3 -2 -2 -2 -2 -1 -1 --------- Run | Scr Mat Min Mat Min Exi Min Mat Gar Mat Fac Gar Fac Gar Fac Gar Fac Ext Cet Arc Hub Gar Fac Gar Fac Gar Res Gar Res Gar Res Gar Res Gar Acc Com Total 14791 | . 60 129 446 82 297 149 1094 956 394 67 604 141 430 402 799 198 1010 304 49 34 471 51 572 102 447 83 991 15 631 205 1171 333 566 829 679 Wait 693 | . . . 27 . . 9 124 32 29 . 30 . 2 6 11 . 56 . 6 7 5 5 9 . 3 10 25 . 9 36 54 19 54 46 79 Move 11597 | . 51 118 334 82 292 120 714 737 292 63 489 139 379 349 638 177 695 278 43 25 427 46 434 93 403 64 837 15 523 158 867 252 395 630 438 Hop 1 | . . . . . . . . . . . . . . . . . . . . . . . . . . . . . . . . . . 1 . Pick Up 202 | . 1 2 11 . 2 . 25 18 5 . 8 . 6 1 18 . 6 4 . . 7 . 6 . 4 . 5 . 9 . 28 4 18 10 4 Fast Attach 128 | . . . 7 . . . 14 5 1 . 2 . 2 1 5 . 1 4 . . . . 5 . 1 . 13 . 9 . 21 4 6 8 19 Attach 124 | . 2 . 2 . . 1 13 6 1 2 1 . 2 4 5 . 1 . . . 2 . 2 1 2 . 4 . 8 1 18 8 17 7 14 Detach 24 | . 2 . . . . . 4 3 1 . . . . 1 . . . . . . . . . . . . . . 2 . . . 7 2 2 Swap 146 | . . 1 8 . 1 . 20 6 12 . 8 . 7 3 12 3 8 2 . . 5 . 7 . 9 . 5 . 2 . . 1 3 15 8 Drop 207 | . 3 . 8 . 2 . 32 22 7 . 8 . 4 . 15 . 2 9 . . 6 . 5 . 4 . 9 . 10 . 14 2 9 24 12 Fire 607 | . . 5 44 . . 17 109 19 35 . 26 . 17 25 19 14 25 1 . 1 12 . 11 7 8 3 31 . 15 7 16 4 46 53 37 Melee 667 | . . . . . . . 31 108 10 2 32 2 10 1 21 4 34 6 . 1 7 . 15 1 11 5 61 . 41 2 122 39 10 29 62 Ram . | . . . . . . . . . . . . . . . . . . . . . . . . . . . . . . . . . . . . Kick 5 | . 1 . . . . . . . . . . . . . . . . . . . . . . . . . . . . . . . . . 4 Crush 32 | . . 3 5 . . 2 8 . 1 . . . . 11 . . . . . . . . . . 1 . 1 . . . . . . . . Escape Stasis 3 | . . . . . . . . . . . . . . . . . . . . . . . . . . . . . . . 1 . . 2 . Rewire 355 | . . . . . . . . . . . . . 1 . 55 . 182 . . . . . 78 . 1 1 . . 3 1 30 . 1 2 . Trap . | . . . . . . . . . . . . . . . . . . . . . . . . . . . . . . . . . . . . Miscellaneous . | . . . . . . . . . . . . . . . . . . . . . . . . . . . . . . . . . . . . Route ------- -11/Scrapyard -10/Materials -10/Mines -9/Materials -9/Mines -9/Exiles -8/Mines -8/Materials (discovered 3 exits: *Fac x2 / Gar) -8/Garrison (discovered 3 exits: *Mat x3) -8/Materials (discovered 3 exits: *Fac x3) -7/Factory -7/Garrison (discovered 3 exits: *Fac x3) -7/Factory -7/Garrison (discovered 2 exits: *Fac x2) -6/Factory -6/Garrison (discovered 3 exits: *Fac x3) -6/Factory -6/Extension (discovered 2 exits: *Fac / *Cet) -6/Cetus (discovered 2 exits: *Fac / *Arc) -6/Archives -6/Hub_04(d) -6/Garrison (discovered 3 exits: *Fac x3) -5/Factory -5/Garrison (discovered 2 exits: *Fac x2) -4/Factory (discovered 2 exits: [*Upp] / Gar) -4/Garrison (discovered 4 exits: *Res x3 / [Fac]) -3/Research -3/Garrison (discovered 4 exits: *Res x3 / *Res) -3/Research -3/Garrison (discovered 3 exits: *Res x3) -2/Research -2/Garrison (discovered 3 exits: *Res x3) -2/Research -2/Garrison (discovered 3 exits: *Acc x3) -1/Access -1/Command (discovered 2 exits: Sur x2) History --------- Turn | Location | Event 1 | -11/Scrapyard | Discovered new exit (range 0) 1 | -11/Scrapyard | Entered Materials 56 | -10/Materials | Discovered new exit (range 13) 86 | -10/Materials | Entered Mines 282 | -10/Mines | Discovered new exit (range 4) 294 | -10/Mines | Entered Materials 294 | -9/Materials | Evolved 2 slots: Propulsion x1, Utility x1 317 | -9/Materials | Build established: Mutant 763 | -9/Materials | Build established: Scavenger-Mutant 919 | -9/Materials | Discovered new exit (range 15) 1033 | -9/Materials | Entered Mines 1158 | -9/Mines | Deemed a non-threat by the Exiles lab entrance 1158 | -9/Mines | Discovered new exit (range 5) 1165 | -9/Mines | Entered Exiles 1209 | -9/Exiles | Met 8R-AWN 1233 | -9/Exiles | Met EX-HEX 1274 | -9/Exiles | Met EX-BIN 1365 | -9/Exiles | Aligned with FarCom system 1367 | -9/Exiles | Given EX-Vault access code 1409 | -9/Exiles | Opened EX-Vault 1419 | -9/Exiles | Found Gui. Plasma Cannon 1455 | -9/Exiles | Warned to stay clear of 0b10 Research branches 1495 | -9/Exiles | Met EX-DEC 1622 | -9/Exiles | Discovered new exit (range 11) 1637 | -9/Exiles | Left Exiles lab with Gui. Plasma Cannon 1637 | -9/Exiles | Entered Mines 1878 | -8/Mines | Discovered new exit (range 5) 1885 | -8/Mines | Entered Materials 1885 | -8/Materials | Evolved 2 slots: Propulsion x1, Utility x1 2285 | -8/Materials | Lost 4 parts (2n1u1w) 2802 | -8/Materials | Discovered new exit (range 15) 2946 | -8/Materials | Build established: Mutant 3085 | -8/Materials | First assault squad dispatched 3352 | -8/Materials | Discovered new exit (range 3) 3397 | -8/Materials | Core integrity fell below 50% 3590 | -8/Materials | Identified exit to Garrison 3590 | -8/Materials | Entered Garrison 3700 | -8/Garrison | Garrison Relay disabled 3700 | -8/Garrison | Garrison Relay disabled 3792 | -8/Garrison | Triggered checkpoint 3991 | -8/Garrison | Destroyed 8 combat bots 4006 | -8/Garrison | Triggered checkpoint 4048 | -8/Garrison | Lost 4 parts (1p1n1u1w) 4124 | -8/Garrison | Triggered checkpoint 4217 | -8/Garrison | Discovered new exit (range 15) 4592 | -8/Garrison | Discovered new exit (range 10) 4817 | -8/Garrison | Discovered new exit (range 9) 5150 | -8/Garrison | Installed Relay Interface Framework 5175 | -8/Garrison | Entered Materials 5444 | -8/Materials | Identified exit to Factory 5673 | -8/Materials | Core integrity fell below 20% 5802 | -8/Materials | Entered Factory 5802 | -7/Factory | Evolved 2 slots: Utility x2 5910 | -7/Factory | Identified exit to Garrison 5910 | -7/Factory | Entered Garrison 6104 | -7/Garrison | Build established: Scavenger-Mutant 6132 | -7/Garrison | Triggered checkpoint 6152 | -7/Garrison | Garrison Relay disabled 6260 | -7/Garrison | Triggered checkpoint 6260 | -7/Garrison | Triggered checkpoint 6368 | -7/Garrison | Garrison Relay disabled 6392 | -7/Garrison | Triggered checkpoint 6457 | -7/Garrison | Discovered new exit (range 3) 6485 | -7/Garrison | Discovered new exit (range 13) 6485 | -7/Garrison | Discovered new exit (range 87) 6485 | -7/Garrison | Discovered new exit (range 65) 6598 | -7/Garrison | Triggered checkpoint 6674 | -7/Garrison | Expanded RIF knowledge: Threat Obfuscation 6700 | -7/Garrison | Build established: Bothacker-Mutant 6724 | -7/Garrison | Triggered checkpoint 6744 | -7/Garrison | Garrison Relay disabled 6879 | -7/Garrison | Entered Factory 6879 | -7/Factory | Accompanied by 1 ally 7092 | -7/Factory | Identified exit to Garrison 7107 | -7/Factory | Entered Garrison 7107 | -7/Garrison | Accompanied by 1 ally 7138 | -7/Garrison | Triggered checkpoint 7171 | -7/Garrison | Garrison Relay disabled 7330 | -7/Garrison | Triggered checkpoint 7330 | -7/Garrison | Triggered checkpoint 7336 | -7/Garrison | Triggered checkpoint 7346 | -7/Garrison | Triggered checkpoint 7491 | -7/Garrison | Discovered new exit (range 9) 7537 | -7/Garrison | Garrison Relay disabled 7663 | -7/Garrison | Discovered new exit (range 15) 7695 | -7/Garrison | Expanded RIF knowledge: Structural Interface 7751 | -7/Garrison | Garrison Relay disabled 7795 | -7/Garrison | Entered Factory 7795 | -6/Factory | Accompanied by 1 ally 7795 | -6/Factory | Evolved 2 slots: Utility x2 7823 | -6/Factory | Garrison activated, responded to threat 8210 | -6/Factory | Fabricated O-16 Technician (x1) 8433 | -6/Factory | Identified exit to Garrison 8433 | -6/Factory | Entered Garrison 8433 | -6/Garrison | Accompanied by 2 allies 8565 | -6/Garrison | Triggered checkpoint 8568 | -6/Garrison | Spotted Executioner 8580 | -6/Garrison | Spotted Striker 8594 | -6/Garrison | Allies destroyed Executioner 8614 | -6/Garrison | Rewired Striker 8626 | -6/Garrison | Destroyed Striker 8679 | -6/Garrison | Rewired Striker 8685 | -6/Garrison | Found Prototype Processor 8685 | -6/Garrison | Identified Exp. Core Analyzer 8693 | -6/Garrison | Found Prototype Processor 8693 | -6/Garrison | Identified Exp. Targeting Computer 8699 | -6/Garrison | Found Prototype Device 8744 | -6/Garrison | Garrison Relay disabled 8824 | -6/Garrison | Triggered checkpoint 8870 | -6/Garrison | Discovered new exit (range 10) 8910 | -6/Garrison | Triggered checkpoint 8930 | -6/Garrison | Garrison Relay disabled 9024 | -6/Garrison | Triggered checkpoint 9070 | -6/Garrison | Expanded RIF knowledge: Coupler Efficiency 9101 | -6/Garrison | Discovered new exit (range 9) 9130 | -6/Garrison | Triggered checkpoint 9163 | -6/Garrison | Garrison Relay disabled 9350 | -6/Garrison | Triggered checkpoint 9364 | -6/Garrison | Build established: Botlord-Mutant 9380 | -6/Garrison | Expanded RIF knowledge: Autooverride 9403 | -6/Garrison | Discovered new exit (range 3) 9455 | -6/Garrison | Garrison Relay disabled 9516 | -6/Garrison | Triggered checkpoint 9522 | -6/Garrison | Identified Adv. Kinecellerator 9659 | -6/Garrison | Entered Factory 9659 | -6/Factory | Accompanied by 3 allies 9973 | -6/Factory | Discovered new exit (range 5) 9978 | -6/Factory | Entered Extension 10151 | -6/Extension | Rescued a captive Derelict 10152 | -6/Extension | Rescued a captive Derelict 10247 | -6/Extension | Rescued a captive Derelict 10555 | -6/Extension | Rescued a captive Derelict 10557 | -6/Extension | System corruption reached 10% 11078 | -6/Extension | Rescued a captive Derelict 11109 | -6/Extension | Rescued A7 11288 | -6/Extension | Rescued a captive Derelict 11401 | -6/Extension | Rescued a captive Derelict 11410 | -6/Extension | Rescued a captive Derelict 11432 | -6/Extension | Discovered new exit (range 10) 11434 | -6/Extension | Discovered new exit (range 6) 11478 | -6/Extension | Entered Cetus 11478 | -6/Cetus | Accompanied by 20 allies (A7) 11483 | -6/Cetus | Acquired a Cetus Manufacturing Module code from A7 11498 | -6/Cetus | Spotted Cetus Guard 11498 | -6/Cetus | Spotted Cetus Guard 11500 | -6/Cetus | Spotted Cetus Guard 11500 | -6/Cetus | Spotted Cetus Guard 11508 | -6/Cetus | Allies destroyed Cetus Guard 11512 | -6/Cetus | Allies destroyed Cetus Guard 11512 | -6/Cetus | Allies destroyed Cetus Guard 11514 | -6/Cetus | Allies destroyed Cetus Guard 11580 | -6/Cetus | Started Cetus Manufacturing Module 11605 | -6/Cetus | Manufactured an Enhanced Grunt 11630 | -6/Cetus | Manufactured an Enhanced Grunt 11655 | -6/Cetus | Manufactured an Enhanced Grunt 11680 | -6/Cetus | Manufactured an Enhanced Grunt 11689 | -6/Cetus | Escorted A7 to Cetus Mainframe 11705 | -6/Cetus | Manufactured an Enhanced Grunt 11728 | -6/Cetus | Discovered new exit (range 15) 11859 | -6/Cetus | Spotted Cetus Guard 11859 | -6/Cetus | Spotted Cetus Guard 11863 | -6/Cetus | Spotted Cetus Guard 11864 | -6/Cetus | Spotted Cetus Guard 11872 | -6/Cetus | Allies destroyed Cetus Guard 11872 | -6/Cetus | Allies destroyed Cetus Guard 11878 | -6/Cetus | Discovered new exit (range 16) 11878 | -6/Cetus | Allies destroyed Cetus Guard 11879 | -6/Cetus | Allies destroyed Cetus Guard 11887 | -6/Cetus | Met Revision 17 11958 | -6/Cetus | Entered Archives 11958 | -6/Archives | Accompanied by 9 allies (A7) 11963 | -6/Archives | Received a hacking code to weaken MAIN.C 11978 | -6/Archives | Met Zhirov 11984 | -6/Archives | Reinforcements dispatched to Archives 11998 | -6/Archives | Read partially decrypted archive contents 12003 | -6/Archives | Discovered new exit (range 14) 12029 | -6/Archives | Reinforcements dispatched to Archives 12033 | -6/Archives | Entered Hub_04(d) 12033 | -6/Hub_04(d) | Accompanied by 6 allies 12084 | -6/Hub_04(d) | Identified exit to Garrison 12084 | -6/Hub_04(d) | Entered Garrison 12084 | -6/Garrison | Accompanied by 6 allies 12128 | -6/Garrison | Triggered checkpoint 12348 | -6/Garrison | Triggered checkpoint 12354 | -6/Garrison | Triggered checkpoint 12355 | -6/Garrison | Triggered checkpoint 12440 | -6/Garrison | Discovered new exit (range 10) 12479 | -6/Garrison | Discovered new exit (range 12) 12479 | -6/Garrison | Discovered new exit (range 75) 12479 | -6/Garrison | Discovered new exit (range 43) 12786 | -6/Garrison | Expanded RIF knowledge: Threat Obfuscation 12828 | -6/Garrison | Entered Factory 12828 | -5/Factory | Accompanied by 6 allies 12828 | -5/Factory | Evolved 2 slots: Utility x2 12907 | -5/Factory | Identified exit to Garrison 12907 | -5/Factory | Entered Garrison 12907 | -5/Garrison | Accompanied by 6 allies 12938 | -5/Garrison | Spotted Striker 12938 | -5/Garrison | Spotted Striker 12949 | -5/Garrison | Allies destroyed Striker 12951 | -5/Garrison | Allies destroyed Striker 12960 | -5/Garrison | Rewired Striker 13110 | -5/Garrison | Triggered checkpoint 13115 | -5/Garrison | Triggered checkpoint 13116 | -5/Garrison | Triggered checkpoint 13118 | -5/Garrison | Triggered checkpoint 13228 | -5/Garrison | Expanded RIF knowledge: Program Shield 13239 | -5/Garrison | Discovered new exit (range 12) 13332 | -5/Garrison | Triggered checkpoint 13461 | -5/Garrison | Found Prototype Device 13462 | -5/Garrison | Identified Exp. Thermal Shield 13570 | -5/Garrison | Discovered new exit (range 14) 13775 | -5/Garrison | Entered Factory 13775 | -4/Factory | Accompanied by 6 allies 13775 | -4/Factory | Evolved 2 slots: Utility x2 13775 | -4/Factory | Discovered new exit (range 12) 13938 | -4/Factory | Identified exit to Garrison 13938 | -4/Factory | Entered Garrison 13938 | -4/Garrison | Accompanied by 5 allies 14037 | -4/Garrison | Discovered new exit (range 46) 14037 | -4/Garrison | Discovered new exit (range 64) 14037 | -4/Garrison | Discovered new exit (range 68) 14037 | -4/Garrison | Discovered new exit (range 34) 14108 | -4/Garrison | Spotted B-86 Titan 14111 | -4/Garrison | Triggered checkpoint 14113 | -4/Garrison | Assimilated Titan 7a with formatsys_high 14178 | -4/Garrison | Expanded RIF knowledge: Coupler Efficiency 14403 | -4/Garrison | Garrison Relay disabled 14524 | -4/Garrison | Triggered checkpoint 14548 | -4/Garrison | Garrison Relay disabled 14632 | -4/Garrison | Entered Research 14632 | -3/Research | Accompanied by 2 allies 14632 | -3/Research | Evolved 2 slots: Utility x2 14725 | -3/Research | Spotted B-86 Titan 14732 | -3/Research | Destroyed B-86 Titan 14758 | -3/Research | Identified exit to Garrison 14758 | -3/Research | Entered Garrison 14758 | -3/Garrison | Accompanied by 3 allies 14982 | -3/Garrison | Garrison Relay disabled 14996 | -3/Garrison | Triggered checkpoint 15071 | -3/Garrison | Q-Series assembled to engage unique threat in Research 15130 | -3/Garrison | Triggered checkpoint 15152 | -3/Garrison | Expanded RIF knowledge: Threat Obfuscation 15346 | -3/Garrison | Garrison Relay disabled 15437 | -3/Garrison | Triggered checkpoint 15440 | -3/Garrison | Triggered checkpoint 15530 | -3/Garrison | Triggered checkpoint 15554 | -3/Garrison | Garrison Relay disabled 15609 | -3/Garrison | Garrison Relay disabled 15654 | -3/Garrison | Discovered new exit (range 14) 15762 | -3/Garrison | Found Prototype Device 15762 | -3/Garrison | Identified Exp. Thermal Defense Suite 15900 | -3/Garrison | Triggered checkpoint 15959 | -3/Garrison | Discovered new exit (range 9) 15990 | -3/Garrison | Triggered checkpoint 16007 | -3/Garrison | Discovered new exit (range 3) 16090 | -3/Garrison | Triggered checkpoint 16103 | -3/Garrison | Spotted B-86 Titan 16128 | -3/Garrison | Discovered new exit (range 44) 16128 | -3/Garrison | Discovered new exit (range 58) 16128 | -3/Garrison | Discovered new exit (range 26) 16128 | -3/Garrison | Discovered new exit (range 41) 16156 | -3/Garrison | Destroyed B-86 Titan 16289 | -3/Garrison | Entered Research 16289 | -3/Research | Accompanied by 4 allies 16311 | -3/Research | Identified exit to Garrison 16311 | -3/Research | Entered Garrison 16311 | -3/Garrison | Accompanied by 4 allies 16398 | -3/Garrison | Garrison Relay disabled 16430 | -3/Garrison | Triggered checkpoint 16451 | -3/Garrison | System corruption reached 10% 16546 | -3/Garrison | Lost 5 parts (1p3u1w) 16582 | -3/Garrison | Expanded RIF knowledge: Command Fork 16597 | -3/Garrison | Garrison Relay disabled 16668 | -3/Garrison | Spotted B-86 Titan 16672 | -3/Garrison | Triggered checkpoint 16674 | -3/Garrison | Assimilated Titan 8a with formatsys_high 16691 | -3/Garrison | Triggered checkpoint 16754 | -3/Garrison | Triggered checkpoint 16759 | -3/Garrison | Discovered new exit (range 15) 16893 | -3/Garrison | Garrison Relay disabled 16949 | -3/Garrison | Triggered checkpoint 17061 | -3/Garrison | Discovered new exit (range 32) 17061 | -3/Garrison | Discovered new exit (range 47) 17061 | -3/Garrison | Discovered new exit (range 59) 17254 | -3/Garrison | Entered Research 17254 | -2/Research | Evolved 2 slots: Utility x2 17352 | -2/Research | Spotted B-90 Cyclops 17461 | -2/Research | Spotted B-90 Cyclops 17465 | -2/Research | Assimilated Cyclops 9a with formatsys_high 17534 | -2/Research | Identified exit to Garrison 17534 | -2/Research | Entered Garrison 17534 | -2/Garrison | Accompanied by 1 ally 17625 | -2/Garrison | Triggered checkpoint 17699 | -2/Garrison | Rescued a captive Derelict 17700 | -2/Garrison | Rescued a captive Derelict 17759 | -2/Garrison | Spotted B-90 Cyclops 17781 | -2/Garrison | Triggered checkpoint 17794 | -2/Garrison | Triggered checkpoint 17804 | -2/Garrison | Allies destroyed B-90 Cyclops 17835 | -2/Garrison | Lost 3 parts (2u1w) 17885 | -2/Garrison | Garrison Relay disabled 18020 | -2/Garrison | Discovered new exit (range 3) 18081 | -2/Garrison | Lost 4 parts (4u) 18095 | -2/Garrison | Phase Generator disabled 18149 | -2/Garrison | Lost 5 parts (1p2n2u) 18153 | -2/Garrison | Build established: Scavenger-Mutant 18348 | -2/Garrison | Lost 3 parts (1p2u) 18413 | -2/Garrison | Garrison Relay disabled 18450 | -2/Garrison | Triggered checkpoint 18460 | -2/Garrison | Triggered checkpoint 18572 | -2/Garrison | Lost 6 parts (1p1n3u1w) 18618 | -2/Garrison | Triggered checkpoint 18786 | -2/Garrison | Found Adv. Force Booster 18969 | -2/Garrison | Discovered new exit (range 14) 18996 | -2/Garrison | Identified exit to Research 19022 | -2/Garrison | Discovered exit to Research (range 63) 19022 | -2/Garrison | Discovered exit to Research (range 12) 19022 | -2/Garrison | Discovered exit to Research (range 40) 19058 | -2/Garrison | Triggered checkpoint 19069 | -2/Garrison | Expanded RIF knowledge: Command Fork 19106 | -2/Garrison | Triggered checkpoint 19156 | -2/Garrison | Triggered checkpoint 19244 | -2/Garrison | Garrison Relay disabled 19258 | -2/Garrison | Triggered checkpoint 19301 | -2/Garrison | Lost 3 parts (1n2u) 19345 | -2/Garrison | Spotted Striker 19363 | -2/Garrison | Entered Research 19363 | -2/Research | Accompanied by 1 ally 19517 | -2/Research | Core integrity fell below 50% 19548 | -2/Research | Lost 4 parts (3u1w) 19732 | -2/Research | Lost 5 parts (1p4n) 19798 | -2/Research | Identified exit to Garrison 19799 | -2/Research | Garrison activated, responded to threat 19800 | -2/Research | Entered Garrison 19800 | -2/Garrison | Accompanied by 2 allies 19831 | -2/Garrison | System corruption reached 10% 19852 | -2/Garrison | Garrison Relay disabled 19919 | -2/Garrison | Discovered new exit (range 63) 19919 | -2/Garrison | Discovered new exit (range 52) 19919 | -2/Garrison | Discovered new exit (range 21) 19969 | -2/Garrison | Core integrity fell below 20% 20009 | -2/Garrison | Lost 5 parts (1p1n3u) 20018 | -2/Garrison | Build established: Botlord-Mutant 20023 | -2/Garrison | Expanded RIF knowledge: Autooverride 20052 | -2/Garrison | Identified exit to Access 20084 | -2/Garrison | Triggered checkpoint 20106 | -2/Garrison | Garrison Relay disabled 20246 | -2/Garrison | Spotted B-90 Cyclops 20328 | -2/Garrison | Destroyed B-90 Cyclops 20345 | -2/Garrison | Found Unknown Hackware 20348 | -2/Garrison | Found Unknown Hackware 20350 | -2/Garrison | Found Unknown Hackware 20352 | -2/Garrison | Found Unknown Hackware 20411 | -2/Garrison | Spotted Striker 20411 | -2/Garrison | Spotted Striker 20432 | -2/Garrison | Triggered checkpoint 20502 | -2/Garrison | Entered Access 20502 | -1/Access | Accompanied by 1 ally 20502 | -1/Access | Evolved 2 slots: Utility x2 20592 | -1/Access | Garrison activated, responded to threat 20957 | -1/Access | Spotted B-99 Colossus 20985 | -1/Access | Allies destroyed B-99 Colossus 21194 | -1/Access | Garrison activated, responded to threat 21456 | -1/Access | Discovered new exit (range 7) 21461 | -1/Access | Identified exit to Command 21498 | -1/Access | Entered Command 21498 | -1/Command | Accompanied by 3 allies 21498 | -1/Command | Identified Relay Coupler [Proto] (x4) 21724 | -1/Command | Lost 10 parts (1p4n5u) 21744 | -1/Command | Spotted M Guard 21745 | -1/Command | Spotted M Guard 21745 | -1/Command | Spotted Combat Programmer 21749 | -1/Command | Spotted Combat Programmer 21750 | -1/Command | Assimilated M Guard with formatsys_high 21752 | -1/Command | Assimilated M Guard with formatsys_high 21767 | -1/Command | Allies destroyed Combat Programmer 21773 | -1/Command | Allies destroyed Combat Programmer 21840 | -1/Command | Met MAIN.C 21840 | -1/Command | Hacked MAIN.C using A7's code 21842 | -1/Command | 0b10 Conduit disabled 21868 | -1/Command | System corruption reached 10% 21891 | -1/Command | Core integrity fell below 50% 21927 | -1/Command | Core integrity fell below 20% 21954 | -1/Command | Lost 15 parts (1p3n10u1w) 22002 | -1/Command | Allies destroyed MAIN.C Shell 22003 | -1/Command | Surrendered to MAIN.C 22003 | -1/Command | Loaded intel: 63 machine locations 22003 | -1/Command | Loaded intel: 103 trap records 22003 | -1/Command | Identified exit to Surface 22003 | -1/Command | Discovered exit to Surface (range 95) 22003 | -1/Command | Discovered exit to Surface (range 47) 22147 | -1/Command | Found Prototype Protection 22147 | -1/Command | Identified SHELL Armor 22152 | -1/Command | Found Prototype Reactor 22152 | -1/Command | Identified Zero-point Reactor 22154 | -1/Command | Found Prototype Processor 22154 | -1/Command | Identified Exp. Target Analyzer 22169 | -1/Command | MAIN.C activated Command garrisons 22209 | -1/Command | Unknown forces attacked Command 22211 | -1/Command | Spotted EQ-001 22213 | -1/Command | Spotted EQ-002 22268 | -1/Command | Crushed by falling debris 22299 | -1/Command | Lost 3 parts (2u1w) 22300 | -1/Command | Spotted EQ-019 22300 | -1/Command | Spotted EQ-018 22311 | -1/Command | All MAIN.C guards destroyed 22320 | -1/Command | Destroyed by EQ-019 with Cooled Phase Gun Last Messages --------------- 22268_ The unstable cave ceiling collapses. 22268_ Acquired 8 matter. 22273_ The unstable cave ceiling collapses. 22276_ Penetrated by Slug. 22278_ Acquired 6 matter. 22279_ Slug penetrates EQ-001. 22280_ System corrupted: Heat flow error (+188). 22281_ The unstable cave ceiling collapses. 22288_ P-80 Master resets M Guard, system corruption cleaned. 22290_ The unstable cave ceiling collapses. 22297_ System corrupted: IFF burst signal emitted. EQ-018 warps into view. EQ-019 warps into view. 22301_ The unstable cave ceiling collapses. 22311_ M Guard system terminally corrupted. 22313_ The unstable cave ceiling collapses. 22315_ H-88 Terminator system terminally corrupted. 22315_ Slug penetrates Earth. 22317_ H-88 Terminator destroyed. [Achievement: Superachiever] Map ----- +----------------------------------------------------+ | ### # # #??????????????????????????? | | # "" # # #??????##################### | | # ^"""" # # #??????#???????????????????? | | ]# ^ """" # # #??????#?################### | | # "" # # #??????#?#""""""" """" | | + # + #??????#?#"" "" | | # ###### #??????#?#""""" "" | | # #??????#?#""""""""""" | | # "" #??????#?#" " | | # """" #??????#?#"" "" | | ### """" #??????#?#"" "" | | ??#^ "" #??????#?# " "" | | ### #??????#?# " l | | ^ #??????#?# " g | | ^ #??????#?#""lb"" " | | ^ #??????#?#"h g " | | ################### !=#??????#?# " | | ?????????????????##=[%##?????#?#p | | ?????????????????# ![!######### | | ?????????????????# mi " " " | | ???#####?????????# " " " " " | | ???# #?????????# " " " | | #### < #?????????# ##### """""" """ " | | #?????????##### #?#?# " """ " """"" | | #??????????### ###?# """ " " " | | ########?????????## @ ##?################### | | ??##########?????# # #???????????????????? | | ??# ######## ###################### | | ### # # #??????????????????? | | + # # #??????????????????? | | ### # # ##??????????????????? | | ??# # [ ###??????????????????? | | ??# "" + %# ###????????????????? | | ??# """" " [% # #????????????????? | | ??# """" Q #%[ ######??????????????? | | ??# "" #= =[ ## #??????????????? | | ??#######+" # # #######?????????????? | | ??????# #?????????????? | | ??????# T#?????????????? | | ??????# = % # ##### ##?????????????? | | ##????# % #### ##?????????????? | | #????# #]]]= #?????????????? | | ###### #[[[== #?????????????? | | + #!!!== #?????????????? | | ######+### #![=!* #?????????????? | | # ## #########?????????????? | | # # #?????????????????????? | | + "" # #?????????????????????? | | # """"#?# #?????????????????????? | | # """"#?# # #?????????????????????? | +----------------------------------------------------+ Best States ------------- Heat Dissipation 102 Energy Generation 33 Energy Capacity 850 Matter Stores 300 Matter Capacity 300 Sight Range 23 Terrain Scan Density 10 Power Amplification 30 Additional Mass Support 12 Armor Coverage 1500 Resistance: TH 30 Resistance: EM 25 Weapon Shielding 66 Point Defense Rating 320 Phase Shifting 15 Evasion (%) 55 Targeting Accuracy 12 Melee Accuracy 5 Target Analysis 10 Core Analysis 8 Armor Integrity Analysis 40 Recoil Reduction 4 Matter Filtering 50 Offensive Hacking 24 Defensive Hacking 12 Relay Coupler Types 11 Relay Coupler Value 464 Authchip Count 1 Item Schematics ----------------- Remote Datajack | -6/Factory | Scanalyzed Robot Schematics ------------------ O-16 Technician | -9/Materials | Hacked Fabricated ------------ O-16 Technician | x1 | -6/Factory | Authchip Alien Tech Used ----------------- None Achievements -------------- No Explosion For You Poison In The Code Superachiever Challenges ------------ None Game ------ Seed KineticTacticalTriangulator Manual? 0 Play Time 04:25:11 Cumulative 286.2 hours Start 2022.08.09 @ 15:41:42 End 2022.08.10 @ 16:33:05 Sessions 5 Manual Loads 0 Difficulty Rogue Special Mode None Game No. 326 Rogue 326 Adventurer 0 Explorer 0 Win Type - Total 11 Types 8/0/2/1/0/0/0/0/0 Lore% 73 Gallery% 87 Achievement% 75 Wizard Run 0 Options --------- ASCII 0 Keyboard 0 Movement Numpad Keybinds 0 Fullscreen 1 Font 18/Terminus Map View 76x50 Tactical HUD 1 Map Filters NONE Filters NONE Steam 1 RUN: df3b7af7-9b37-460f-b49b-71fa1ae77dd7